Cogmind - Beta 17.1 @@@ ROGUE MODE // 2026.08.21 @ 05:09:44 Player: Scuttle Result: Self-destructed Performance ------------- Evolutions (9) 4500 Regions Visited (27) 5400 Robots Destroyed (507) 2535 Value Destroyed (24985) 24985 Prototype IDs (80) 1600 Alien Tech Used (11) 2200 Bonus (52877) 52877 TOTAL SCORE: 94097 Bonus ------- High Alert Combat Kills 7232 Follower Combat Kills 4179 Prayed to X0-1V1 5000 Major X0-1V1 Interference 18600 Subatomizer Sterilization 3000 Built Enhanced Grunts 300 A7 Reached Mainframe 300 Met R17 at Cetus 500 Found Hidden Lab 3000 Used Core Reset Matrix 3000 Met R17 at Research 2000 Scanned by Researcher 500 Pursued by Intercept 1000 Met MAIN.C 5000 Destroyed MAIN.C Shell 5000 Friendly Fire -5734 Cogmind --------- Core Integrity 1281/1700 Matter 425/425 Energy 100/100 System Corruption 3% +Membrane Temperature Cool (1) Movement Immobile (Siege) Location -1/Command Parts ------- > --- POWER (2) -------- (None) > --- PROPULSION (6) --- High-density Centrium Heavy Treads (fused) > --- UTILITY (13) ----- Experimental Heat Sink (fused) High-capacity Storage Unit Experimental Signal Interpreter Experimental Core Analyzer Graphene Brace > --- WEAPON (4) ------- Null Cannon > --- INVENTORY (20) --- Armored Heavy Treads Biometal Heavy Treads Small Matter Pod (50) Advanced Sensor Array Experimental Armor Integrity Analyzer Advanced Kinecellerator Experimental EM Shield High-powered Tractor Beam High-powered Transdimensional Reconstructor Core Regenerator Cooled Nova Cannon Advanced KE Penetrator Perforator Peak State ------------ > --- POWER ------------ Cooled Antimatter Reactor Improved Quantum Reactor > --- PROPULSION ------- Biometal Heavy Treads High-density Centrium Heavy Treads High-density Centrium Heavy Treads > --- UTILITY ---------- High-capacity Storage Unit Experimental Signal Interpreter Experimental Terrain Scan Processor Experimental Core Analyzer Experimental Armor Integrity Analyzer SHELL Armor Graphene Brace Experimental EM Shield AEGIS Remote Shield High-powered Tractor Beam X0-1V1's Piety Tracker > --- WEAPON ----------- Perforator Sigix Broadsword > --- INVENTORY -------- Light Quantum Reactor Light Quantum Reactor Armored Heavy Treads Armored Heavy Treads Experimental Heat Sink Advanced Sensor Array Terrain Scanner Experimental Armor Integrity Analyzer Advanced Kinecellerator Phase Redirector High-powered Transdimensional Reconstructor Core Regenerator Sigix Sheargun Sigix Sheargun Cooled Nova Cannon Null Cannon Advanced KE Penetrator [Rating: 259] Favorites ----------- Power Cold Fusion Reactor Engine Cooled Ion Engine Power Core Light Nuclear Core Reactor Cold Fusion Reactor Propulsion Light Treads Treads Light Treads Wheel Centrium Wheel Utility High-capacity Storage Unit Device X0-1V1's Piety Tracker Storage High-capacity Storage Unit Processor Advanced Targeting Computer Protection Centrium Medium Armor Plating Artifact Phase Redirector Weapon Advanced KE Penetrator Energy Gun Gatling Laser Energy Cannon Cooled Nova Cannon Ballistic Gun Advanced KE Penetrator Ballistic Cannon Perforator Launcher Fusion Bomb Launcher Special Weapon Mining Laser Impact Weapon Great Maul Slashing Weapon Sigix Broadsword Special Melee Weapon Improved Datajack Build | -11 -10 -9 -9 -9 -9 -6 -6 -6 -6 -6 -5 -5 -5 -5 -5 -5 -4 -4 -4 -4 -3 -3 -2 -2 -2 -1 -1 ------- Run | Yrd Mat Mat Sto Rec Scr Fac Ext Cet Arc Hub Fac Was Fac Upp Upp War Pro Fac Arm Lab Res Tes Res Qua Sec Acc Com Slots Evolved 18 | . . 2 . . . 6 . . . . 2 . . . . . . 2 . . 2 . 2 . . 2 . Power 1 | . . . . . . . . . . . 1 . . . . . . . . . . . . . . . . Propulsion 4 | . . . . . . 2 . . . . . . . . . . . . . . 2 . . . . . . Utility 11 | . . 1 . . . 4 . . . . . . . . . . . 2 . . . . 2 . . 2 . Weapon 2 | . . 1 . . . . . . . . 1 . . . . . . . . . . . . . . . . Parts Attached 296 | 8 7 12 27 . 4 9 10 13 1 7 5 8 4 . 3 . 4 24 51 4 11 28 4 12 24 10 6 Power 40 | 1 3 1 4 . . . . 1 . 1 1 . . . . . . 4 12 . 1 2 1 1 5 . 2 Engine 8 | 1 2 1 4 . . . . . . . . . . . . . . . . . . . . . . . . Core 4 | . 1 . . . . . . . . . . . . . . . . 1 2 . . . . . . . . Reactor 28 | . . . . . . . . 1 . 1 1 . . . . . . 3 10 . 1 2 1 1 5 . 2 Propulsion 47 | 4 . 1 8 . . 2 2 1 1 3 . 3 . . . . . 6 5 . 2 2 . 3 3 . 1 Treads 37 | 2 . 1 6 . . 2 2 1 1 3 . 3 . . . . . 2 3 . 2 2 . 3 3 . 1 Leg . | . . . . . . . . . . . . . . . . . . . . . . . . . . . . Wheel 10 | 2 . . 2 . . . . . . . . . . . . . . 4 2 . . . . . . . . Hover . | . . . . . . . . . . . . . . . . . . . . . . . . . . . . Flight . | . . . . . . . . . . . . . . . . . . . . . . . . . . . . Utility 134 | 1 2 4 6 . 1 5 5 8 . . 2 2 3 . 3 . 2 8 22 1 8 16 3 6 13 10 3 Device 84 | 1 1 4 3 . . 3 1 2 . . 1 1 2 . 3 . 1 7 14 1 5 11 1 5 7 9 1 Storage 7 | . 1 . 1 . . . 1 1 . . . . . . . . . . . . 1 . 1 . . . 1 Processor 16 | . . . . . . . . 1 . . 1 . 1 . . . 1 1 3 . . 4 . . 3 1 . Hackware . | . . . . . . . . . . . . . . . . . . . . . . . . . . . . Protection 25 | . . . 2 . 1 2 3 4 . . . 1 . . . . . . 5 . 2 1 1 . 2 . 1 Artifact 2 | . . . . . . . . . . . . . . . . . . . . . . . . 1 1 . . Weapon 75 | 2 2 6 9 . 3 2 3 3 . 3 2 3 1 . . . 2 6 12 3 . 8 . 2 3 . . Energy Gun 30 | 1 1 3 6 . 3 . 2 2 . . . 2 . . . . 1 1 4 2 . . . . 2 . . Energy Cannon 6 | . . . . . . . 1 . . . 1 1 . . . . . . . . . 3 . . . . . Ballistic Gun 33 | 1 1 2 3 . . 2 . 1 . 3 . . 1 . . . 1 5 6 1 . 4 . 2 . . . Ballistic Cannon 1 | . . . . . . . . . . . . . . . . . . . . . . 1 . . . . . Launcher 1 | . . . . . . . . . . . . . . . . . . . 1 . . . . . . . . Special Weapon 1 | . . 1 . . . . . . . . . . . . . . . . . . . . . . . . . Impact Weapon 1 | . . . . . . . . . . . . . . . . . . . 1 . . . . . . . . Slashing Weapon 1 | . . . . . . . . . . . . . . . . . . . . . . . . . 1 . . Piercing Weapon . | . . . . . . . . . . . . . . . . . . . . . . . . . . . . Special Melee Weapon 1 | . . . . . . . . . . . 1 . . . . . . . . . . . . . . . . Unidentified Prototypes 51 | . 1 . 2 . . . 1 4 . 2 . 2 . . . . . . . 3 1 15 1 6 12 . 1 Corrupted Parts 6 | . 1 . . . . . . . . 3 . . . . . . . . 2 . . . . . . . . System Corruption 49 | . 6 . . . . . . . . 31 . . . . . . . . 12 . . . . . . . . Parts Lost 55 | . . 1 3 . . . . 1 . 2 . . . . 1 . 3 4 21 . . . . . 4 1 14 Power 8 | . . . 1 . . . . . . . . . . . . . . . 2 . . . . . 1 . 4 Propulsion 6 | . . . . . . . . . . . . . . . . . . 1 3 . . . . . . . 2 Utility 27 | . . 1 1 . . . . 1 . 1 . . . . 1 . 1 3 9 . . . . . 2 1 6 Weapon 14 | . . . 1 . . . . . . 1 . . . . . . 2 . 7 . . . . . 1 . 2 Highest Loss Streak 14 | . . 1 1 . . . . 1 . 1 . . . . 1 . 2 3 6 . . . . . 2 1 14 To Critical Strikes . | . . . . . . . . . . . . . . . . . . . . . . . . . . . . Average Backups 16 | . 6 12 15 20 19 18 18 19 19 17 15 17 16 17 16 17 16 16 15 18 17 17 15 16 16 15 16 Power 1 | . 1 1 . 2 2 2 2 1 1 2 2 2 2 2 2 2 2 1 . 3 2 2 2 1 . 2 1 Propulsion 2 | . 2 5 5 5 5 4 4 3 3 1 . 1 2 2 2 2 2 5 2 2 . . 1 1 1 1 2 Utility 6 | . . 3 4 4 3 3 4 5 6 4 6 7 8 9 8 9 8 7 4 6 8 8 5 6 7 5 6 Weapon 5 | . 2 3 5 9 9 9 8 8 9 8 7 6 4 4 4 4 3 3 8 6 6 6 6 6 4 5 3 Tool/Special . | . . . . . . . . . . . . . . . . . . . . . . . . . . . . Unused Backups 68 | . 1 2 5 . . 4 1 3 2 2 . 3 3 1 1 . 1 2 10 2 6 10 2 . 3 . 4 Power 8 | . . . . . . 1 . 1 1 1 . . . . . . 1 . 2 . . 1 . . . . . Propulsion 11 | . 1 1 . . . 1 . . . . . . . . . . . . 2 . 3 . 2 . . . 1 Utility 25 | . . . 1 . . 1 1 1 . 1 . 2 . 1 1 . . 2 . 2 2 6 . . 3 . 1 Weapon 22 | . . 1 4 . . 1 . 1 1 . . 1 3 . . . . . 6 . 1 3 . . . . . Tool/Special 2 | . . . . . . . . . . . . . . . . . . . . . . . . . . . 2 Average Slot Usage (%) 88 | . 95 97 99 100 100 92 100 99 100 98 93 88 87 88 88 83 87 92 89 86 84 84 77 77 76 70 68 Engine 2 | . 12 9 11 11 11 6 6 3 . . . . . . . . . . . . . . . . . . . Reactor 6 | . . . . . . . . 2 6 6 11 11 11 11 11 11 11 9 7 5 8 9 8 8 7 8 7 Treads 12 | . 27 21 15 . . 12 13 13 13 22 17 11 11 11 11 11 11 5 5 5 13 14 13 12 13 12 12 Wheel 3 | . . . 5 22 22 13 13 13 13 2 . . . . . . . 9 8 10 . . . . . . . Device 19 | . 14 20 21 22 13 21 26 20 20 19 18 17 19 21 19 17 18 18 24 23 19 20 17 16 16 19 15 Storage 5 | . 10 11 11 11 11 6 6 6 6 6 5 5 5 5 5 5 5 5 5 5 4 4 4 4 4 4 4 Processor 9 | . . . . . . . . 1 6 6 8 11 12 11 11 11 12 18 12 15 14 16 13 13 13 16 12 Protection 3 | . . . . . 8 10 13 17 13 13 5 5 1 . 2 5 1 2 1 . 2 . 3 4 4 4 6 Energy Gun 7 | . 14 15 21 22 30 14 5 6 6 6 9 4 5 5 5 4 5 6 4 7 4 2 3 1 3 . 1 Ballistic Gun 12 | . 13 17 11 11 2 5 13 13 13 13 11 17 16 17 17 13 17 13 14 11 13 13 13 13 9 . 1 Peak Build Rating 259 | 6 22 28 36 36 36 50 60 92 89 100 114 121 120 120 121 119 119 135 148 143 165 188 209 212 238 259 255 Average Rating 121 | 4 8 25 28 36 27 46 56 79 88 85 110 118 114 115 116 113 111 120 120 132 160 175 200 207 219 249 243 On Entrance 106 | . 6 22 28 36 36 25 48 60 88 89 96 114 119 115 115 119 119 108 113 143 128 164 178 207 209 238 252 Avg Prop Armor Cover (%) 10 | . . . . . . 9 9 8 9 9 . . . . . 9 . 12 11 13 14 . . . . 4 . Naked Turns . | . . . . . . . . . . . . . . . . . . . . . . . . . . . . Heaviest Build 210 | 7 29 39 62 62 66 79 81 101 94 94 106 102 97 96 96 96 96 111 112 109 128 134 166 169 159 155 210 Greatest Support 260 | 40 40 40 40 24 24 24 24 40 24 133 133 150 150 150 150 150 150 150 93 32 225 230 225 260 260 255 255 Greatest Overweight (x) 4 | 1 1 . 2 2 2 3 3 4 3 3 . . . . . 1 . 3 3 3 2 . . . . . . Average Overweight (x) . | . . . . 2 2 2 2 2 3 . . . . . . . . 2 2 2 . . . . . . . Largest Inventory Capacity 20 | 5 15 15 20 20 20 20 20 20 20 20 20 20 20 20 20 20 20 20 20 20 20 20 20 20 20 20 20 Average Capacity 19 | 5 12 15 16 20 20 20 20 20 20 20 20 20 20 20 20 20 20 20 20 20 20 20 20 20 20 20 20 Most Carried 20 | 1 9 15 20 20 20 20 20 20 20 20 18 20 20 20 20 20 20 20 20 20 20 20 20 20 20 20 20 Average Carried 17 | . 6 12 15 20 19 18 18 19 19 17 16 19 19 20 19 20 19 19 17 19 18 19 17 19 18 17 18 Final Capacity 20 | 5 15 15 20 20 20 20 20 20 20 20 20 20 20 20 20 20 20 20 20 20 20 20 20 20 20 20 20 Final Carried 20 | 1 8 15 20 20 19 16 20 20 20 16 18 20 20 20 20 20 18 17 20 20 20 20 18 20 16 19 16 Class Distribution -------------------- 25% | Tank 19% | Scavenger-Tank 16% | Gunner 11% | Scavenger-Gunner 6% | Scavenger-Skirmisher 6% | Mutant 5% | Commander-Tank 4% | Alien-Mutant Dominant Class ---------------- Mutant | -10/Materials Gunner | -9/Materials Gunner | -9/Storage Gunner | -9/Recycling Tank | -9/Scraptown Tank | -6/Factory Commander-Tank | -6/Extension Commander-Tank | -6/Cetus Commander-Tank | -6/Archives Scavenger-Gunner | -6/Hub_04(d) Scavenger-Gunner | -5/Factory Scavenger-Gunner | -5/Waste Scavenger-Skirmisher | -5/Factory Scavenger-Skirmisher | -5/Upper Caves Scavenger-Tank | -5/Upper Caves Scavenger-Tank | -5/Warlord Scavenger-Skirmisher | -4/Proximity Caves Gunner | -4/Factory Scavenger-Tank | -4/Armory Gunner | -4/Lab Tank | -3/Research Tank | -3/Testing Scavenger-Tank | -2/Research Tank | -2/Quarantine Tank | -2/Section 7 Alien-Assassin | -1/Access Alien-Mutant | -1/Command Resources | -11 -10 -9 -9 -9 -9 -6 -6 -6 -6 -6 -5 -5 -5 -5 -5 -5 -4 -4 -4 -4 -3 -3 -2 -2 -2 -1 -1 ----------- Run | Yrd Mat Mat Sto Rec Scr Fac Ext Cet Arc Hub Fac Was Fac Upp Upp War Pro Fac Arm Lab Res Tes Res Qua Sec Acc Com Matter Collected 19980 | 236 271 337 672 22 116 369 876 364 71 222 309 727 350 266 356 . 395 1907 2991 . 1105 1192 284 620 3125 1454 1343 Remotely 6809 | . . . . . . . . . . . . . . . 109 . 185 1140 1819 . 318 85 . 275 1697 192 989 Salvage Created 28851 | 25 613 655 2026 22 50 331 472 233 71 268 . 822 1215 135 391 . 538 2494 3871 . 1629 1686 256 1109 4798 1952 3189 Parts 1162 | 2 34 46 108 3 1 13 23 8 4 11 . 10 48 6 23 . 30 101 158 . 35 87 9 66 162 82 92 Haulers Intercepted 23 | . 2 1 6 . . . . . . 1 . . 1 . . . . 2 . . 4 2 . . 2 2 . Recyclers Shooed 16 | . 4 1 3 . . 1 . . . 1 . . . . . . . 1 . . 2 . . . 1 . 2 Parts Field Recycled . | . . . . . . . . . . . . . . . . . . . . . . . . . . . . Retrieved Matter . | . . . . . . . . . . . . . . . . . . . . . . . . . . . . Parts Self-Destructed 75 | . . . . . . . . . . . . . . 20 24 . 31 . . . . . . . . . . Prevented 5 | . . . . . . . . . . . . . . . . . 5 . . . . . . . . . . Parts Restored . | . . . . . . . . . . . . . . . . . . . . . . . . . . . . Kills | -11 -10 -9 -9 -9 -9 -6 -6 -6 -6 -6 -5 -5 -5 -5 -5 -5 -4 -4 -4 -4 -3 -3 -2 -2 -2 -1 -1 ------- Run | Yrd Mat Mat Sto Rec Scr Fac Ext Cet Arc Hub Fac Was Fac Upp Upp War Pro Fac Arm Lab Res Tes Res Qua Sec Acc Com Combat Hostiles Destroyed 370 | . 13 17 39 . 1 5 7 2 1 1 . 3 16 5 12 . 16 32 66 1 9 18 2 14 60 15 15 Melee 1 | . . . . . . . . . . . . . . . . . . . . . . . . . 1 . . Guns 293 | . 13 17 39 . 1 5 7 2 1 1 . 3 14 5 12 . 16 32 54 1 8 16 1 14 29 . 2 Cannons 60 | . . . . . . . . . . . . . . . . . . . . . . 2 1 . 29 15 13 AOE 14 | . . . . . . . . . . . . . 2 . . . . . 12 . . . . . . . . Classes Destroyed 28 | 1 6 2 2 . 1 . 1 . . . . 2 2 . 1 . 1 1 4 . . 1 . . 2 1 . Worker 22 | . 1 1 3 . . . . . . . . . 3 . . . . 5 . . 2 1 . . 2 1 3 Builder 20 | . . . 1 1 . . . . . 1 . . 1 . . . . 3 . . 1 4 . 3 1 4 . Tunneler 2 | 1 1 . . . . . . . . . . . . . . . . . . . . . . . . . . Hauler 23 | . 2 1 6 . . . . . . 1 . . 1 . . . . 2 . . 4 2 . . 2 2 . Recycler 30 | . 3 . 4 . . . 1 . . 1 . . 1 . . . . 2 . . 4 . 1 . 3 2 8 Carrier 1 | . . . . . . . . . . . . . . . . . . . . . . . . . . 1 . Mechanic 2 | . . . . . . . . . . . . . . . . . . . 1 . . . . . 1 . . Operator 6 | . . . 3 . . . . . . . . . . . . . . . . . . 1 . 2 . . . Watcher 20 | . 1 1 2 . . . . 1 . . . . . . . . . 2 3 . 3 . . 3 1 2 1 Swarmer 64 | . 8 4 12 . . . 2 . . . . . . 4 8 . 13 . 5 . . . . . 8 . . Saboteur 3 | . . . . . . . . . . . . . . . . . . 1 1 . . . . . 1 . . Grunt 114 | . 5 7 16 . . 4 . . . 1 . . 6 . . . 1 11 19 . 1 4 . 1 23 6 9 Brawler 14 | . . . . . . . . . . . . . 1 . . . . 2 3 . 3 . . . 3 2 . Duelist 13 | . . 1 . . . . . . . . . . . . . . . . 11 . . . . . 1 . . Protector 2 | . . . . . . . . . . . . . . . . . . . 1 . . . . . . . 1 Researcher 7 | . . . . . . . . . . . . . . . . . . . . . . 1 . 1 5 . . Sentry 39 | . . 5 11 . . 1 3 . 1 . . . 3 . . . . 4 3 . 2 . . . 6 . . Demolisher 1 | . . . . . . . . . . . . . . . . . . . 1 . . . . . . . . Specialist 7 | . . . . . . . . . . . . . . . . . . . 7 . . . . . . . . Hunter 28 | . . . . . . . 2 . . . . . 1 . 1 . . 4 2 . 3 4 . 4 5 2 . Programmer 63 | . . . . . . . . . . . . . 5 1 . . 1 10 12 . . 8 1 9 7 5 4 Heavy 1 | . . . . . . . . . . . . . . . . . . . 1 . . . . . . . . Q-Series 1 | . . . . . . . . . . . . . . . . . . . . . . . . . 1 . . Behemoth 2 | . . . . . . . . . . . . . . . . . 1 . . . . . 1 . . . . Compactor 3 | . . . . . . . . . . . . 3 . . . . . . . . . . . . . . . Cetus Guard 2 | . . . . . . . . 2 . . . . . . . . . . . . . . . . . . . S7 Guard 1 | . . . . . . . . . . . . . . . . . . . . . . . . . 1 . . Tracker 1 | . . . . . . . . . . . . . . . . . . . . . . 1 . . . . . Combat Programmer 1 | . . . . . . . . . . . . . . . . . . . . . . 1 . . . . . Executioner 4 | . . . . . . . . . . . . . . . . . . . . . . . . . 4 . . Explorer 1 | . . . . . 1 . . . . . . . . . . . . . . . . . . . . . . Wasp 1 | . . . . . . . . . . . . . 1 . . . . . . . . . . . . . . Martyr 2 | . . . . . . . . . . . . 2 . . . . . . . . . . . . . . . Fireman 3 | . . . . . . . . . . . . . . . 3 . . . . . . . . . . . . Best Kill Streak 23 | 1 6 10 5 1 1 2 2 1 1 1 . 3 6 3 5 . 5 8 23 1 5 4 1 6 15 10 7 Combat Bots Only 21 | . 4 9 5 . 1 2 2 1 1 1 . 3 5 3 5 . 5 5 21 1 3 3 1 5 15 6 5 Max Kills in Single Turn 4 | 1 2 1 2 1 1 2 1 1 1 1 . 1 3 2 2 . 2 2 4 1 1 3 1 2 3 3 3 Gunslinging 1 | . 1 . 1 . . 1 . . . . . . 1 1 1 . 1 . 1 . . . . 1 1 . . Exploded 4 | . . . . . . . . . . . . . 2 . . . . . 4 . . . . . . . . Melee 1 | . . . . . . . . . . . . . . . . . . . . . . . . . 1 . . Uniques/NPCs Destroyed 3 | . . . . . . . . 1 . . . . . . . . . . . 1 . . . . . . 1 A7 (-6/Cetus) A5 (-4/Lab) MAIN.C Shell (-1/Command) Combat | -11 -10 -9 -9 -9 -9 -6 -6 -6 -6 -6 -5 -5 -5 -5 -5 -5 -4 -4 -4 -4 -3 -3 -2 -2 -2 -1 -1 -------- Run | Yrd Mat Mat Sto Rec Scr Fac Ext Cet Arc Hub Fac Was Fac Upp Upp War Pro Fac Arm Lab Res Tes Res Qua Sec Acc Com Hostile Shots Fired 2333 | . 47 41 103 . 7 25 155 21 2 27 . . 16 34 33 . 65 209 446 28 3 85 3 158 480 27 318 Missed 548 | . 21 11 28 . 1 7 57 9 1 9 . . 7 11 10 . 12 44 97 3 . 23 . 38 85 7 67 Hits 1785 | . 26 30 75 . 6 18 98 12 1 18 . . 9 23 23 . 53 165 349 25 3 62 3 120 395 20 251 Melee 46 | . . 2 1 . 3 . . . . . . . . . . . . 2 30 . . . . . 8 . . Projectile 1739 | . 26 28 74 . 3 18 98 12 1 18 . . 9 23 23 . 53 163 319 25 3 62 3 120 387 20 251 AOE 21 | . . . . . . . . . . . . . . . . . . . 4 . . . . 2 8 . 7 Critical Strikes 95 | . 2 . . . 1 . . 3 . 3 . . . 1 1 . 3 11 19 . . 4 . 5 21 2 19 Actively Blocked 24 | . . . . . . . . . . . . . . . . . . . . . . . . . 3 2 19 Part Disruptions 12 | . . . . . . . . . . . . . 1 . 1 5 . . . . . . . 1 1 1 2 Damage Taken 30366 | . 241 384 983 . 304 248 699 272 23 702 . . 351 465 396 106 1217 2978 5910 329 31 616 38 1473 5438 264 6898 Core 2128 | . 28 104 94 . 86 3 66 . . 88 . . 29 66 47 . . 157 318 65 . 38 . 201 319 24 395 Absorbed by Shields 8405 | . . . . . . 62 293 112 . . . . . . . . . 148 462 320 30 585 36 1410 3409 243 1295 Reduced by Siege Mode 1734 | . . . . . . . . . . . . . . 9 . . 39 278 452 38 . 55 5 60 424 . 374 Redirected to Core 330 | . . . . . . . . . . . . . . . . . . . . . . . . 154 . . 176 Redirected to Shielding 44 | . . . . . . . . . . . . . . . . . . . 44 . . . . . . . . Ignored by Resistances 3126 | . . . . . . . . . . . . . . . . . . 295 356 . . 20 . . 1268 54 1133 Regen/Repaired (Parts) 6614 | . . 126 110 . . 40 . . . . . 102 113 . 37 65 907 45 . . . 21 19 621 3927 142 339 Core Remaining (%) 81 | 100 100 . . . 68 . . . . 83 . . . . . . 87 . . 56 . 97 . . 58 . . Volleys Fired 1097 | 1 46 33 90 1 8 19 30 41 5 21 13 22 25 13 16 . 22 90 142 21 32 59 11 55 174 29 78 Largest 4 | 2 2 3 3 3 3 3 3 3 3 3 1 4 4 4 4 . 4 4 4 4 4 4 4 4 4 1 4 Hottest 330 | 60 60 144 163 163 163 135 126 240 139 141 90 176 183 183 183 . 191 244 221 240 240 255 235 235 330 130 315 Shots Fired 3112 | 2 92 98 257 3 24 57 88 121 15 63 13 85 94 49 66 . 88 323 477 63 119 170 26 162 394 29 134 Gun 2760 | 2 92 98 257 3 24 57 87 121 15 63 . 85 94 49 66 . 88 313 458 63 119 138 17 135 270 . 46 Cannon 341 | . . . . . . . 1 . . . 13 . . . . . . 10 9 . . 31 9 27 124 29 88 Launcher 11 | . . . . . . . . . . . . . . . . . . . 10 . . 1 . . . . . Special . | . . . . . . . . . . . . . . . . . . . . . . . . . . . . Kinetic 1929 | 1 46 60 84 1 4 45 58 80 10 42 . 63 71 38 50 . 66 233 345 8 75 113 15 108 239 25 49 Thermal 1105 | 1 46 38 173 2 8 . 30 41 5 21 13 22 23 11 16 . 22 90 122 55 44 55 11 54 136 4 62 Explosive 11 | . . . . . . . . . . . . . . . . . . . 10 . . 1 . . . . . Electromagnetic 25 | . . . . . 12 12 . . . . . . . . . . . . . . . 1 . . . . . Slashing 42 | . . . . . . . . . . . . . . . . . . . . . . . . . 19 . 23 Robot Hit Streak 60 | 2 10 18 14 2 15 17 10 12 14 16 . 33 35 25 9 . 30 44 60 33 40 56 12 34 29 12 58 Robot Miss Streak 14 | . 4 6 7 2 3 2 4 4 1 2 . 1 2 2 3 . 3 3 3 4 3 5 1 3 14 8 11 Penetration Max 2 | . . . . . . . . . . 1 . 1 1 . 1 . . 1 1 . 1 1 . 1 1 2 2 Secondary Targets 73 | . 3 1 6 . . 1 2 1 1 2 . 1 4 1 5 . 7 7 15 . . 1 . 3 12 . . Max Gunslinging Chain 2 | . 1 1 1 . . 1 1 1 1 1 . 1 1 1 1 . 2 1 1 . . 1 . 1 2 . . Shots Hit Robots 2182 | 2 61 68 171 2 12 45 64 85 13 49 1 79 62 37 42 . 69 230 371 52 74 107 15 98 247 26 100 Core Hits 1428 | 2 33 63 155 1 7 24 33 26 4 13 . 20 54 12 26 . 30 100 184 33 51 77 10 59 247 62 102 Critical Kills 139 | . . 1 . . . 1 . 1 . . . 3 3 1 2 . 2 12 14 . 8 5 . 4 34 26 22 Critical Parts Destroyed 209 | . . 1 1 . . . . 4 3 . . . 7 4 2 . 4 15 16 . 4 12 4 15 59 29 29 Critical Strikes 375 | . . 3 3 1 2 1 3 8 4 1 . 7 10 5 4 . 6 28 31 . 13 17 5 19 98 55 51 Burn 17 | . . 1 2 1 2 . 3 2 1 1 . 4 . . . . . . . . . . . . . . . Destroy 358 | . . 2 1 . . 1 . 6 3 . . 3 10 5 4 . 6 28 31 . 13 17 5 19 98 55 51 Melee Attacks 19 | . . . . . . . . . . . 1 . . . . . . . 6 . . . . . . 7 5 Impact 6 | . . . . . . . . . . . . . . . . . . . 6 . . . . . . . . Slashing 12 | . . . . . . . . . . . . . . . . . . . . . . . . . . 7 5 Piercing . | . . . . . . . . . . . . . . . . . . . . . . . . . . . . Sneak Attacks 6 | . . . . . . . . . . . 1 . . . . . . . . . . . . . . 1 4 Combat Hostiles . | . . . . . . . . . . . . . . . . . . . . . . . . . . . . Follow-up Attacks . | . . . . . . . . . . . . . . . . . . . . . . . . . . . . Damage Inflicted 60992 | 29 788 954 2735 29 208 722 1086 1933 296 1163 27 2011 2231 1053 1275 . 1725 7249 12944 1058 2032 3656 694 3707 7354 553 3480 Guns 51698 | 23 766 930 2711 29 208 722 1086 1933 296 1129 . 2011 1983 1053 1275 . 1725 6968 10144 1058 2021 3015 381 3201 5581 . 1449 Cannons 4699 | . . . . . . . . . . . 27 . . . . . . . . . . 641 313 506 1374 413 1425 Explosions 3675 | . . . . . . . . . . . . . 235 . . . . 258 2800 . . . . . 382 . . Melee 746 | . . . . . . . . . . . . . . . . . . . . . . . . . . 140 606 Ramming 174 | 6 22 24 24 . . . . . . 34 . . 13 . . . . 23 . . 11 . . . 17 . . Kinetic 34371 | 12 405 456 601 . 40 551 557 1191 180 715 . 1442 1370 683 915 . 1222 5090 7214 . 1061 2277 308 2292 4378 413 998 Thermal 20896 | 11 361 474 2110 29 113 . 529 742 116 414 27 569 613 370 360 . 503 2136 2930 1058 960 1379 386 1415 2207 . 1084 Explosive 3182 | . . . . . . . . . . . . . . . . . . . 2800 . . . . . 382 . . Electromagnetic 461 | . . . . . 55 171 . . . . . . 235 . . . . . . . . . . . . . . Impact . | . . . . . . . . . . . . . . . . . . . . . . . . . . . . Slashing 1908 | . . . . . . . . . . . . . . . . . . . . . . . . . 370 140 1398 Piercing . | . . . . . . . . . . . . . . . . . . . . . . . . . . . . Highest Corruption 31 | . 8 . 1 . . 1 1 1 . 31 . . 2 1 13 13 . 3 25 24 . 3 . 18 18 3 3 Average Corruption 8 | . 2 . 1 . . 1 1 1 . 30 . . 2 1 9 13 . 1 16 20 . 1 . 11 18 3 3 Corruption Purged 10 | . . . . . . . . . . . . . . . . . . . 1 9 . . . . . . . Corruption Blocked . | . . . . . . . . . . . . . . . . . . . . . . . . . . . . Effects 352 | . 11 . 9 . . 1 7 5 . 3 . . . 2 26 2 . 7 85 25 . 3 . 33 120 1 12 Message Errors 64 | . 3 . 2 . . . 1 . . 1 . . . . 4 2 . 1 13 5 . 1 . 10 21 . . Matter Fused 70 | . 4 . 2 . . . 1 1 . . . . . 1 6 . . . 17 5 . 2 . 5 22 . 4 Heat Flow Errors 49 | . 1 . . . . . . 1 . 1 . . . . 6 . . 3 11 1 . . . 5 14 . 6 Energy Discharges 47 | . 1 . 3 . . . 2 1 . . . . . . 6 . . 1 7 5 . . . 2 18 1 . Parts Rejected 3 | . . . . . . . . . . . . . . . . . . . 1 . . . . 1 1 . . Parts Fused 3 | . 1 . . . . . . . . . . . . . . . . . 1 . . . . . 1 . . Data Loss (minor) 27 | . . . 1 . . 1 1 1 . 1 . . . . . . . 1 6 2 . . . 1 12 . . Data Loss (major) 15 | . 1 . . . . . 1 1 . . . . . . 1 . . . 3 1 . . . 2 4 . 1 Misfires 9 | . . . . . . . . . . . . . . . 2 . . . 3 2 . . . . 2 . . Alerts 11 | . . . 1 . . . 1 . . . . . . . 1 . . . . . . . . 1 7 . . Misdirections 4 | . . . . . . . . . . . . . . . . . . . 1 . . . . . 3 . . Weapon Failures 50 | . . . . . . . . . . . . . . 1 . . . 1 22 4 . . . 6 15 . 1 Overload Shots 5 | . . . . . . . . 1 . . . . . . . . . . . . . 3 . . . . 1 Effects 1 | . . . . . . . . . . . . . . . . . . . . . . 1 . . . . . Heat Surge 1 | . . . . . . . . . . . . . . . . . . . . . . 1 . . . . . Overflow Damage 531 | . . . . . . . . . . . . . . . . . . . 90 . . 21 . 107 63 . 250 Projectiles 142 | . . . . . . . . . . . . . . . . . . . . . . 21 . 107 14 . . Explosions 139 | . . . . . . . . . . . . . . . . . . . 90 . . . . . 49 . . Melee 250 | . . . . . . . . . . . . . . . . . . . . . . . . . . . 250 Knockbacks 66 | . . . . . . . . . . . . . . . . . . 1 . . . . . . 29 21 15 Impact 1 | . . . . . . . . . . . . . . . . . . 1 . . . . . . . . . Kinetic 65 | . . . . . . . . . . . . . . . . . . . . . . . . . 29 21 15 Secondary . | . . . . . . . . . . . . . . . . . . . . . . . . . . . . Self-Inflicted Damage 261 | . . . . . . . . . . . . . 124 . . . . . 137 . . . . . . . . Shots 7 | . . . . . . . . . . . . . 4 . . . . . 3 . . . . . . . . Rammed 23 | 1 6 5 6 . . . . . . 1 . . . . . . . 2 . . . . . . 2 . . Targets Rammed 31 | 1 10 6 6 . . . . . . 2 . . 1 . . . . 2 . . 1 . . . 2 . . Kicked . | . . . . . . . . . . . . . . . . . . . . . . . . . . . . Crushed 8 | . 4 1 . . . . . . . 1 . . 1 . . . . . . . 1 . . . . . . Highest Temperature 474 | . 256 36 252 21 84 13 40 194 1 40 . . 91 88 232 319 427 474 379 238 189 289 198 211 365 162 269 Average Temperature 72 | . 50 9 41 14 24 10 14 45 1 17 . . 30 34 91 153 85 103 72 131 71 84 66 56 68 70 107 Received Heat Transfer 3955 | . 81 117 321 . 61 99 128 9 9 87 . . 54 51 109 . 413 523 982 . 10 30 8 32 483 . 348 Effects 8 | . . . . . . . . . . . . . . . . 2 1 2 1 . . . . . . . 2 Shutdowns 2 | . . . . . . . . . . . . . . . . . . 1 1 . . . . . . . . Energy Bleed 1 | . . . . . . . . . . . . . . . . . . 1 . . . . . . . . . Interference 4 | . . . . . . . . . . . . . . . . 2 . . . . . . . . . . 2 Damage (minor) 1 | . . . . . . . . . . . . . . . . . 1 . . . . . . . . . . Siege Activations 63 | . . . . . . . . . . . . . 1 1 1 . 3 8 18 1 1 7 2 3 10 2 5 Total Turns 1307 | . . . . . . . . . . . . . 10 6 10 . 36 169 309 75 51 60 19 68 245 14 235 Longest Duration 160 | . . . . . . . . . . . . . 10 6 10 . 17 42 48 75 51 17 11 32 55 10 160 Martial Activations . | . . . . . . . . . . . . . . . . . . . . . . . . . . . . Shielding Activations . | . . . . . . . . . . . . . . . . . . . . . . . . . . . . Robots Disrupted . | . . . . . . . . . . . . . . . . . . . . . . . . . . . . Combat Hostiles . | . . . . . . . . . . . . . . . . . . . . . . . . . . . . Robots Corrupted . | . . . . . . . . . . . . . . . . . . . . . . . . . . . . Combat Hostiles . | . . . . . . . . . . . . . . . . . . . . . . . . . . . . Parts Fried 2 | . . . . . . 1 . . . . . . 1 . . . . . . . . . . . . . . Impact Corruptions . | . . . . . . . . . . . . . . . . . . . . . . . . . . . . Robots Melted 6 | . . . 4 . . . . . . . . . . . . . . . . . 2 . . . . . . Combat Hostiles 1 | . . . . . . . . . . . . . . . . . . . . . 1 . . . . . . Parts Melted 48 | . . . 8 . . . 2 . . 1 . . 1 1 1 . 1 1 10 . 6 4 1 3 8 . . Heat Transferred 35119 | 25 825 746 3922 121 292 . 1279 1179 259 684 50 1073 1350 750 925 . 1010 2582 4399 2609 2137 2009 300 2125 4140 . 328 Parts Sabotaged 9 | . . . . . . . . . . . . . . . . . . . 7 . . . . . 2 . . Parts Stolen . | . . . . . . . . . . . . . . . . . . . . . . . . . . . . Parts Stripped . | . . . . . . . . . . . . . . . . . . . . . . . . . . . . Power Chain Reactions . | . . . . . . . . . . . . . . . . . . . . . . . . . . . . Alert | -11 -10 -9 -9 -9 -9 -6 -6 -6 -6 -6 -5 -5 -5 -5 -5 -5 -4 -4 -4 -4 -3 -3 -2 -2 -2 -1 -1 ------- Run | Yrd Mat Mat Sto Rec Scr Fac Ext Cet Arc Hub Fac Was Fac Upp Upp War Pro Fac Arm Lab Res Tes Res Qua Sec Acc Com Maximum Alert Level 5 | . . 1 3 1 . 2 2 2 1 5 4 2 4 . . . . 3 5 . 1 1 1 1 5 4 4 Low Security (%) 40 | 100 100 94 49 . . 56 7 . . 14 . 52 12 . . . . 69 . . 67 51 95 78 10 . . Level 1 19 | . . 5 16 100 . 23 52 23 100 12 . 45 . . . . . 14 12 . 32 48 4 21 9 . . Level 2 11 | . . . 22 . . 20 40 76 . 1 . 2 14 . . . . 13 12 . . . . . 12 . . Level 3 11 | . . . 11 . . . . . . 9 46 . 68 . . . . 1 12 . . . . . 33 7 16 Level 4 13 | . . . . . . . . . . 35 53 . 3 . . . . . 21 . . . . . 30 92 83 Level 5 4 | . . . . . . . . . . 26 . . . . . . . . 40 . . . . . 4 . . High Security . | . . . . . . . . . . . . . . . . . . . . . . . . . . . . Max Security . | . . . . . . . . . . . . . . . . . . . . . . . . . . . . Sterilizations 2 | . . 1 . . . . 1 . . . . . . . . . . . . . . . . . . . . Peak Influence 1909 | 5 154 215 722 324 . 571 551 639 359 1666 1206 401 1107 . . . . 716 1909 . 388 397 202 255 1823 1595 1327 Initial 1091 | . . 9 59 276 . . 271 287 204 118 777 401 17 . . . . 41 347 . . 182 202 46 123 1091 999 Average 488 | . 69 107 306 295 . 172 358 487 308 1062 987 193 731 . . . . 172 1208 . 122 225 117 91 846 1308 1187 Influence Increases 19416 | 5 466 513 1380 93 . 748 715 557 175 1795 617 64 1657 421 389 . 390 1193 2335 . 637 789 95 522 2398 799 663 Destroy 0b10 Robot/C 9620 | . 260 340 880 . . 300 380 220 80 580 200 20 580 240 300 . 320 640 1440 . 180 380 40 340 1300 320 280 Destroy 0b10 Robot/NC 780 | 5 40 15 95 5 . 55 40 10 5 40 10 . 45 . . . . 70 25 . 70 45 5 30 50 55 65 Destroy Leader 1800 | . 66 84 236 . . 68 42 10 . 112 30 . 126 40 40 . 40 138 258 . 44 84 20 56 186 68 52 Allied During Kill 2393 | . . . 31 . . 98 196 240 85 732 201 20 542 126 49 . 15 2 46 . . . . . . . 10 Successful Hack 386 | . 10 43 42 28 . 18 14 . . 5 23 . 12 . . . . 16 14 . 52 97 8 . 4 . . Select Force Hacks 90 | . 30 . . 60 . . . . . . . . . . . . . . . . . . . . . . . Disable Machine 1260 | . . . 60 . . 105 . 30 . 60 15 . 150 . . . . 150 210 . 15 105 . 30 240 60 30 Anti-Garrison Action 500 | . . . . . . . . . . 150 . . 150 . . . . . . . . . . . . 200 . Destroy Structure 1548 | . . 1 6 . . 89 28 47 5 116 138 24 52 . . . . 162 252 . 4 78 22 66 226 96 136 Partial Spotted 45 | . 15 . 15 . . . . . . . . . . . . . . 15 . . . . . . . . . Lose Combat Pursuer 450 | . 45 30 15 . . 15 15 . . . . . . 15 . . 15 . 90 . . . . . 120 . 90 Miscellaneous 544 | . . . . . . . . . . . . . . . . . . . . . 272 . . . 272 . . Influence Decreases 18224 | 5 443 393 813 544 259 193 756 559 348 547 1056 1187 599 643 537 713 324 549 1144 1901 312 753 373 386 798 1056 1033 Entered New Map 8690 | . . 14 84 434 259 . 284 227 308 221 810 747 8 401 165 713 . 25 363 1901 . 143 159 37 96 728 563 Time Decay 8464 | 5 443 369 569 110 . 193 452 302 40 286 246 380 391 222 342 . 294 474 571 . 312 610 214 349 662 318 310 Lost Part 550 | . . 10 30 . . . . 10 . 20 . . . . 10 . 30 40 210 . . . . . 40 10 140 Lost Ally 430 | . . . 40 . . . 20 20 . 20 . 60 200 20 20 . . 10 . . . . . . . . 20 Purge Threat 90 | . . . 90 . . . . . . . . . . . . . . . . . . . . . . . . Squads Dispatched 98 | . 3 . 9 . . 5 . 1 . 9 1 . 6 . . . . 8 11 . 6 6 2 4 20 2 5 Investigation 10 | . 2 . . . . 1 . 1 . 1 . . . . . . . . . . 2 1 . . . 1 1 Extermination 23 | . . . . . . . . . . 1 . . 2 . . . . 3 3 . . 3 1 3 6 1 . Reinforcement 30 | . 1 . 5 . . 1 . . . 3 . . 1 . . . . 4 3 . 3 1 1 1 6 . . Assault 26 | . . . 2 . . . . . . 3 1 . 2 . . . . 1 5 . . . . . 8 . 4 Garrison 7 | . . . 2 . . 3 . . . 1 . . 1 . . . . . . . . . . . . . . Intercept 2 | . . . . . . . . . . . . . . . . . . . . . 1 1 . . . . . Searches Triggered . | . . . . . . . . . . . . . . . . . . . . . . . . . . . . Construction Impeded 3 | . . . . . . . . . . . . . 1 . . . . . . . . . 1 . 1 . . Haulers Reinforced 6 | . . . . . . 1 . . . 1 . . . . . . . . . . 1 1 . . 2 . . Active Scanning Responses . | . . . . . . . . . . . . . . . . . . . . . . . . . . . . Cargo Convoy Interrupts . | . . . . . . . . . . . . . . . . . . . . . . . . . . . . Stealth | -11 -10 -9 -9 -9 -9 -6 -6 -6 -6 -6 -5 -5 -5 -5 -5 -5 -4 -4 -4 -4 -3 -3 -2 -2 -2 -1 -1 --------- Run | Yrd Mat Mat Sto Rec Scr Fac Ext Cet Arc Hub Fac Was Fac Upp Upp War Pro Fac Arm Lab Res Tes Res Qua Sec Acc Com Distress Signals 38 | . 4 2 3 . . 2 . 2 . 3 . . 3 . . . . 5 3 . 2 . . 1 2 4 2 Communications Jammed 200 | . . . . . . . . . . . . . . . . . . 27 44 . 17 3 . 19 90 . . Distress Signals 197 | . . . . . . . . . . . . . . . . . . 27 44 . 17 . . 19 90 . . Times Spotted 639 | . 31 20 64 . 4 20 22 10 4 25 . 5 38 11 14 . 16 56 95 1 11 18 2 25 97 17 33 Peak Tracking Total 15 | . 6 4 8 . 6 8 4 5 2 10 . 2 6 4 5 . 5 6 10 1 3 2 1 4 15 6 14 Tactical Retreats 24 | . 3 2 1 . . 1 1 . . . . . . 1 . . 1 . 5 . . . . . 6 . 3 Traps | -11 -10 -9 -9 -9 -9 -6 -6 -6 -6 -6 -5 -5 -5 -5 -5 -5 -4 -4 -4 -4 -3 -3 -2 -2 -2 -1 -1 ------- Run | Yrd Mat Mat Sto Rec Scr Fac Ext Cet Arc Hub Fac Was Fac Upp Upp War Pro Fac Arm Lab Res Tes Res Qua Sec Acc Com Traps Triggered 16 | . 3 . 3 . . . 1 . . . 1 . . . . 2 . . 1 . . . . 1 2 1 1 Indirectly . | . . . . . . . . . . . . . . . . . . . . . . . . . . . . Trap Hack Attempts . | . . . . . . . . . . . . . . . . . . . . . . . . . . . . Triggered . | . . . . . . . . . . . . . . . . . . . . . . . . . . . . Disarmed . | . . . . . . . . . . . . . . . . . . . . . . . . . . . . Reprogrammed 2 | . . . 2 . . . . . . . . . . . . . . . . . . . . . . . . Reused . | . . . . . . . . . . . . . . . . . . . . . . . . . . . . Traps Extracted . | . . . . . . . . . . . . . . . . . . . . . . . . . . . . Installed . | . . . . . . . . . . . . . . . . . . . . . . . . . . . . Triggered . | . . . . . . . . . . . . . . . . . . . . . . . . . . . . Machines | -11 -10 -9 -9 -9 -9 -6 -6 -6 -6 -6 -5 -5 -5 -5 -5 -5 -4 -4 -4 -4 -3 -3 -2 -2 -2 -1 -1 ---------- Run | Yrd Mat Mat Sto Rec Scr Fac Ext Cet Arc Hub Fac Was Fac Upp Upp War Pro Fac Arm Lab Res Tes Res Qua Sec Acc Com Machines Disabled 108 | . . . 4 . 7 7 3 3 . 5 1 . 11 . . . . 15 14 2 1 8 1 2 18 4 2 Max in Single Turn 4 | . . . 1 . 1 . 1 1 . . . . 4 . . . . 2 4 1 1 1 1 1 2 1 1 Garrison Access 5 | . . . 1 . . . . . . 1 . . 1 . . . . . . . . 1 . . . 1 . Energy Cycler 1 | . . . . . . . . . . . . . . . . . . . 1 . . . . . . . . Machines Repaired . | . . . . . . . . . . . . . . . . . . . . . . . . . . . . Machines Dismantled . | . . . . . . . . . . . . . . . . . . . . . . . . . . . . Machines Sabotaged . | . . . . . . . . . . . . . . . . . . . . . . . . . . . . Overloaded Fab Kills . | . . . . . . . . . . . . . . . . . . . . . . . . . . . . Hacking | -11 -10 -9 -9 -9 -9 -6 -6 -6 -6 -6 -5 -5 -5 -5 -5 -5 -4 -4 -4 -4 -3 -3 -2 -2 -2 -1 -1 --------- Run | Yrd Mat Mat Sto Rec Scr Fac Ext Cet Arc Hub Fac Was Fac Upp Upp War Pro Fac Arm Lab Res Tes Res Qua Sec Acc Com Machines Accessed 85 | . 5 8 10 3 . 5 7 1 . 2 3 . 5 . . . . 3 1 2 5 12 2 3 4 4 . Terminals 52 | . 4 6 7 1 . 2 7 1 . 2 . . 3 . . . . 1 1 . 1 6 1 2 4 3 . Fabricators 2 | . . . . . . . . . . . 1 . . . . . . . . . . 1 . . . . . Repair Stations 10 | . . 1 2 . . 2 . . . . . . 2 . . . . 1 . . 1 1 . . . . . Recycling Units 4 | . 1 . . 2 . . . . . . . . . . . . . . . . . . 1 . . . . Scanalyzers 9 | . . 1 . . . . . . . . 2 . . . . . . 1 . . 2 3 . . . . . Garrison Access 6 | . . . 1 . . 1 . . . . . . . . . . . . . . 1 1 . 1 . 1 . Total Hacks 225 | . 14 31 33 8 . 9 18 2 . 5 10 . 9 . . . . 5 3 19 14 20 7 5 6 7 . Successful 112 | . 7 17 20 4 . 5 2 . . 1 7 . 5 . . . . 3 1 19 7 7 3 1 1 2 . Failed 112 | . 7 13 13 4 . 4 16 2 . 4 3 . 4 . . . . 2 2 . 7 13 4 4 5 5 . Catastrophic 20 | . 1 1 1 . . 1 2 1 . . . . 1 . . . . . . . 2 5 1 2 1 1 . Database Lockouts 1 | . . 1 . . . . . . . . . . . . . . . . . . . . . . . . . Manual 70 | . 15 13 9 5 . 2 1 1 . 5 . . 3 . . . . 2 2 . . 1 5 2 1 3 . Terminals 138 | . 13 25 22 5 . 3 18 2 . 5 . . 5 . . . . 2 3 . 4 12 5 3 6 5 . Fabricators 5 | . . . . . . . . . . . 4 . . . . . . . . . . 1 . . . . . Repair Stations 26 | . . 4 8 . . 5 . . . . . . 4 . . . . 1 . . 2 2 . . . . . Recycling Units 6 | . 1 . . 3 . . . . . . . . . . . . . . . . . . 2 . . . . Scanalyzers 19 | . . 2 . . . . . . . . 6 . . . . . . 2 . . 6 3 . . . . . Garrison Access 12 | . . . 3 . . 1 . . . . . . . . . . . . . . 2 2 . 2 . 2 . Terminal Hacks 62 | . 4 11 11 1 . 1 2 . . . . . 2 . . . . . 1 19 2 4 1 1 1 1 . Record 19 | . . . . . . . . . . . . . . . . . . . . 19 . . . . . . . Part Schematic 2 | . . . 2 . . . . . . . . . . . . . . . . . . . . . . . . Robot Analysis 3 | . 2 1 . . . . . . . . . . . . . . . . . . . . . . . . . Prototype ID Bank 6 | . 2 4 . . . . . . . . . . . . . . . . . . . . . . . . . Open Door 8 | . . . 2 . . 1 2 . . . . . . . . . . . . . . 1 . . 1 1 . Open DSF 1 | . . . . . . . . . . . . . 1 . . . . . . . . . . . . . . Branch Access Points 2 | . . 1 . . . . . . . . . . . . . . . . . . . . 1 . . . . Alert Level 3 | . . . 1 . . . . . . . . . . . . . . . . . 1 . . 1 . . . Unreport Threat 1 | . . . 1 . . . . . . . . . . . . . . . . . . . . . . . . Locate Traps 4 | . . 2 1 . . . . . . . . . 1 . . . . . . . . . . . . . . Reprogram Traps 1 | . . . 1 . . . . . . . . . . . . . . . . . . . . . . . . Transport Status 1 | . . 1 . . . . . . . . . . . . . . . . . . . . . . . . . Recall Investigation 1 | . . . 1 . . . . . . . . . . . . . . . . . . . . . . . . Hauler Manifests 2 | . . 1 1 . . . . . . . . . . . . . . . . . . . . . . . . Registered Components 1 | . . 1 . . . . . . . . . . . . . . . . . . . . . . . . . Zone Layout 7 | . . . 1 1 . . . . . . . . . . . . . . 1 . 1 3 . . . . . Fabricator Hacks 1 | . . . . . . . . . . . 1 . . . . . . . . . . . . . . . . Load Schematic 1 | . . . . . . . . . . . 1 . . . . . . . . . . . . . . . . Repair Station Hacks 17 | . . 4 6 . . 3 . . . . . . 2 . . . . . . . 1 1 . . . . . Scan Component 11 | . . 2 4 . . 2 . . . . . . 1 . . . . . . . 1 1 . . . . . Repair 6 | . . 2 2 . . 1 . . . . . . 1 . . . . . . . . . . . . . . Recycling Unit Hacks 1 | . . . . . . . . . . . . . . . . . . . . . . . 1 . . . . Retrieve Components 1 | . . . . . . . . . . . . . . . . . . . . . . . 1 . . . . Scanalyzer 14 | . . 1 . . . . . . . . 6 . . . . . . 2 . . 4 1 . . . . . Insert Component 5 | . . . . . . . . . . . 2 . . . . . . . . . 3 . . . . . . Analyze 2 | . . . . . . . . . . . 2 . . . . . . . . . . . . . . . . Retrieve Study 7 | . . 1 . . . . . . . . 2 . . . . . . 2 . . 1 1 . . . . . Garrison Access Hacks 2 | . . . 1 . . . . . . . . . . . . . . . . . . 1 . . . . . Seal Access 2 | . . . 1 . . . . . . . . . . . . . . . . . . 1 . . . . . Unauthorized Hacks 15 | . 3 1 2 3 . 1 . . . 1 . . 1 . . . . 1 . . . . 1 . . 1 . Terminals 11 | . 2 1 2 1 . 1 . . . 1 . . 1 . . . . 1 . . . . 1 . . . . Assimilate 1 | . . . . . . . . . . . . . . . . . . 1 . . . . . . . . . Botnet 10 | . 2 1 2 1 . 1 . . . 1 . . 1 . . . . . . . . . 1 . . . . Fabricators . | . . . . . . . . . . . . . . . . . . . . . . . . . . . . Repair Stations . | . . . . . . . . . . . . . . . . . . . . . . . . . . . . Recycling Units 3 | . 1 . . 2 . . . . . . . . . . . . . . . . . . . . . . . Tunnel 3 | . 1 . . 2 . . . . . . . . . . . . . . . . . . . . . . . Scanalyzers . | . . . . . . . . . . . . . . . . . . . . . . . . . . . . Garrison Access 1 | . . . . . . . . . . . . . . . . . . . . . . . . . . 1 . Jam 1 | . . . . . . . . . . . . . . . . . . . . . . . . . . 1 . Data Cores Recovered 1 | . . . . . . . . . . . . . . . . . . . . . . . . 1 . . . Used . | . . . . . . . . . . . . . . . . . . . . . . . . . . . . Hacking Detections 69 | . 4 7 7 1 . 3 6 1 . 2 2 . 4 . . . . 3 1 . 4 11 2 3 4 4 . Full Trace Events 2 | . . . . . . 1 . . . 1 . . . . . . . . . . . . . . . . . Feedback Events 1 | . . . . . . 1 . . . . . . . . . . . . . . . . . . . . . Corruption 1 | . . . . . . 1 . . . . . . . . . . . . . . . . . . . . . Feedback Blocked . | . . . . . . . . . . . . . . . . . . . . . . . . . . . . Robot Schematics Acquired 1 | . . . . . . . . . . . . . . . . . . . . . . . . . 1 . . Robots Built . | . . . . . . . . . . . . . . . . . . . . . . . . . . . . Authchips . | . . . . . . . . . . . . . . . . . . . . . . . . . . . . Time . | . . . . . . . . . . . . . . . . . . . . . . . . . . . . Total Robot Build Rating . | . . . . . . . . . . . . . . . . . . . . . . . . . . . . Part Schematics Acquired 15 | . . . 2 . . . . . . . 2 . . . . . . . . . . 2 . 2 7 . . Parts Built . | . . . . . . . . . . . . . . . . . . . . . . . . . . . . Authchips . | . . . . . . . . . . . . . . . . . . . . . . . . . . . . Time . | . . . . . . . . . . . . . . . . . . . . . . . . . . . . Total Part Build Rating . | . . . . . . . . . . . . . . . . . . . . . . . . . . . . Part Studies Acquired 7 | . . 1 . . . . . . . . 2 . . . . . . 2 . . 1 1 . . . . . Parts Repaired 6 | . . 2 2 . . 1 . . . . . . 1 . . . . . . . . . . . . . . Time 241 | . . 52 58 . . 32 . . . . . . 99 . . . . . . . . . . . . . . Parts Recycled . | . . . . . . . . . . . . . . . . . . . . . . . . . . . . Recycled Matter . | . . . . . . . . . . . . . . . . . . . . . . . . . . . . Retrieved Matter . | . . . . . . . . . . . . . . . . . . . . . . . . . . . . Retrieved Components 7 | . . . . . . . . . . . . . . . . . . . . . . . 7 . . . . Parts Scanalyzed 2 | . . . . . . . . . . . 2 . . . . . . . . . . . . . . . . Part Schematics Acquired 2 | . . . . . . . . . . . 2 . . . . . . . . . . . . . . . . Parts Damaged . | . . . . . . . . . . . . . . . . . . . . . . . . . . . . Bothacking | -11 -10 -9 -9 -9 -9 -6 -6 -6 -6 -6 -5 -5 -5 -5 -5 -5 -4 -4 -4 -4 -3 -3 -2 -2 -2 -1 -1 ------------ Run | Yrd Mat Mat Sto Rec Scr Fac Ext Cet Arc Hub Fac Was Fac Upp Upp War Pro Fac Arm Lab Res Tes Res Qua Sec Acc Com Used RIF Installer . | . . . . . . . . . . . . . . . . . . . . . . . . . . . . Robots Hacked 1 | . . . . . . . . . . . 1 . . . . . . . . . . . . . . . . Non-combat . | . . . . . . . . . . . . . . . . . . . . . . . . . . . . Combat 1 | . . . . . . . . . . . 1 . . . . . . . . . . . . . . . . Robot Hacks Applied 1 | . . . . . . . . . . . 1 . . . . . . . . . . . . . . . . parse_system 1 | . . . . . . . . . . . 1 . . . . . . . . . . . . . . . . Relay Couplers Released 4 | . . . . . . . . . . 1 . . 3 . . . . . . . . . . . . . . Machine Destruction 4 | . . . . . . . . . . 1 . . 3 . . . . . . . . . . . . . . Fabnet Peak Effective % . | . . . . . . . . . . . . . . . . . . . . . . . . . . . . Robots Rewired 8 | . . . . . . . 8 . . . . . . . . . . . . . . . . . . . . Allies Hacked 6 | . . . . . . . . . . . . . 4 . . . . 1 . . . . . . . . 1 Hacks Repelled . | . . . . . . . . . . . . . . . . . . . . . . . . . . . . Allies | -11 -10 -9 -9 -9 -9 -6 -6 -6 -6 -6 -5 -5 -5 -5 -5 -5 -4 -4 -4 -4 -3 -3 -2 -2 -2 -1 -1 -------- Run | Yrd Mat Mat Sto Rec Scr Fac Ext Cet Arc Hub Fac Was Fac Upp Upp War Pro Fac Arm Lab Res Tes Res Qua Sec Acc Com Total Allies 40 | . . . 2 . 1 . 11 5 . . . 18 . . . . . . 1 . . . . . . . 2 Largest Group 19 | . . . 2 . 1 1 10 15 13 13 5 19 16 5 3 2 2 2 1 . . . . . . . 2 Highest-Rated Group 1336 | . . . 62 . 464 464 862 1336 1132 1132 763 734 588 241 99 52 55 55 110 . . . . . . . 220 Highest-Rated Ally 464 | . . . 31 . 464 464 464 464 464 464 464 96 96 96 46 26 28 28 110 . . . . . . . 110 Total Orders 2 | . . . . . . . . 2 . . . . . . . . . . . . . . . . . . . STAY 1 | . . . . . . . . 1 . . . . . . . . . . . . . . . . . . . FOLLOW 1 | . . . . . . . . 1 . . . . . . . . . . . . . . . . . . . Ally Attacks 612 | . . . 20 . 7 31 45 47 12 95 31 66 187 29 10 . . . 13 . . . . . . . 19 Total Damage 22359 | . . . 292 . 852 2508 1636 1975 222 6218 1348 2541 2966 720 231 . . . 678 . . . . . . . 172 Kills 153 | . . . 5 . 5 21 20 10 4 39 12 4 16 7 3 . . . 7 . . . . . . . . Allies Corrupted 4 | . . . . . . . . . . . . . 3 . . . . 1 . . . . . . . . . Allies Melted 1 | . . . . . . . . . . . . . . . 1 . . . . . . . . . . . . X0-1V1 Amusement Gains 661 | . 5 98 20 . . . 20 20 . 35 10 . . . . 95 10 . 60 50 20 30 . . 102 10 76 Average Entertainment 44 | . 5 20 56 45 28 13 18 27 16 30 39 39 39 16 9 100 62 43 50 . 61 65 32 18 75 55 35 Good Acts 115 | . 1 2 8 4 1 3 6 2 . 2 3 2 2 . . 1 3 8 12 . 5 21 2 4 17 4 2 Bad Acts 94 | . 1 3 5 . . 3 8 2 . 2 2 3 7 3 6 . 2 8 3 . 5 3 . 6 12 3 7 Intel | -11 -10 -9 -9 -9 -9 -6 -6 -6 -6 -6 -5 -5 -5 -5 -5 -5 -4 -4 -4 -4 -3 -3 -2 -2 -2 -1 -1 ------- Run | Yrd Mat Mat Sto Rec Scr Fac Ext Cet Arc Hub Fac Was Fac Upp Upp War Pro Fac Arm Lab Res Tes Res Qua Sec Acc Com Active Infowar (turns) 16477 | 34 1264 . . . . 496 1138 664 88 633 188 . 681 382 290 . 441 1627 1419 274 373 1978 426 917 2465 698 1 Optics 1310 | . . . . . . . . . . . . . . . . . . 1308 . . . . . . 2 . . Sensors 9071 | . . . . . . . . . . . . . 681 382 290 . 441 1106 954 274 264 1452 422 776 1629 400 . IFF 1 | . . . . . . . . . . . . . . . . . . . . . . . . . . 1 . Terrain 560 | . . . . . . . . . . . . . . . . . . . . . . . . . . 559 1 Traps 3207 | . . . . . . 496 1138 664 88 633 188 . . . . . . . . . . . . . . . . Seismic 1298 | 34 1264 . . . . . . . . . . . . . . . . . . . . . . . . . . Cloaking 819 | . . . . . . . . . . . . . . . . . . . 659 . 160 . . . . . . Jamming 7892 | . . . . . . . . . . . . . . . . . . 881 1253 273 373 1950 426 712 1714 310 . Robot Analysis Total 3 | . 2 1 . . . . . . . . . . . . . . . . . . . . . . . . . Derelict Logs Recovered 2 | . . . . . . . . . . . . . . . 1 . 1 . . . . . . . . . . Drone Launches . | . . . . . . . . . . . . . . . . . . . . . . . . . . . . Drone Recoveries . | . . . . . . . . . . . . . . . . . . . . . . . . . . . . Exploration | -11 -10 -9 -9 -9 -9 -6 -6 -6 -6 -6 -5 -5 -5 -5 -5 -5 -4 -4 -4 -4 -3 -3 -2 -2 -2 -1 -1 ------------- Run | Yrd Mat Mat Sto Rec Scr Fac Ext Cet Arc Hub Fac Was Fac Upp Upp War Pro Fac Arm Lab Res Tes Res Qua Sec Acc Com Turns Passed 25197 | 109 1424 956 1994 223 322 520 1138 664 88 633 533 880 1075 468 777 201 644 1665 1720 468 1250 1982 441 1039 2514 700 769 Spaces Moved 12033 | 65 744 444 997 184 233 306 693 288 45 328 300 440 545 254 338 119 284 606 678 291 654 898 247 515 1058 336 143 Core 6 | 6 . . . . . . . . . . . . . . . . . . . . . . . . . . . Treads 8357 | 49 744 444 634 . . . . 29 . 271 300 440 545 254 338 119 284 24 78 . 607 898 247 515 1058 336 143 Legs . | . . . . . . . . . . . . . . . . . . . . . . . . . . . . Wheels 3670 | 10 . . 363 184 233 306 693 259 45 57 . . . . . . . 582 600 291 47 . . . . . . Hover . | . . . . . . . . . . . . . . . . . . . . . . . . . . . . Flight . | . . . . . . . . . . . . . . . . . . . . . . . . . . . . Fastest Speed 50 | 50 160 160 105 120 120 120 120 120 135 135 160 160 160 160 160 160 160 120 120 120 120 150 150 150 155 152 155 Average Speed 148 | 139 160 160 147 120 120 129 125 146 135 155 160 160 160 160 160 162 160 134 136 122 152 150 150 151 156 154 156 Slowest Speed 270 | 160 240 160 200 120 120 135 135 240 135 160 160 160 160 160 160 240 160 160 270 140 155 155 150 160 160 155 163 Overloaded Moves . | . . . . . . . . . . . . . . . . . . . . . . . . . . . . Propulsion Burnouts . | . . . . . . . . . . . . . . . . . . . . . . . . . . . . Robots Hopped . | . . . . . . . . . . . . . . . . . . . . . . . . . . . . Potential Cave-ins 12 | . . . . . . . . . . . . . . . . . . . . . . . . . 10 . 2 Cave-ins Triggered . | . . . . . . . . . . . . . . . . . . . . . . . . . . . . Teleports 1 | . . . . . . . . . . . . . . . . . . . . . . . . . 1 . . Exploration Rate (%) 45 | 3 97 39 95 56 25 10 70 74 66 31 8 97 20 43 49 15 55 21 44 95 22 90 9 55 63 10 10 Regions Visited 27 Branch Regions 17 Pre-discovered Areas 5 | . 1 . 1 2 . . . . . . . . . . . . 1 . . . . . . . . . . Known Exits Taken 18 | . . 1 . 1 1 . . . . 1 . . 1 1 1 1 1 1 1 1 1 1 1 1 1 1 . Unknown Exits Taken 7 | 1 1 . 1 . . 1 1 1 1 . . . . . . . . . . . . . . . . . . Scrap Searched 6 | . . . . . 3 . . . . . . . . 1 2 . . . . . . . . . . . . Spaces Dug 82 | . . . . . . . . . . . 12 . . . . . . 8 7 . . 9 4 11 10 6 15 Terrain Destroyed 658 | . . . . . . . . 8 2 9 12 1 12 5 17 . 18 103 178 . 9 49 5 37 111 39 43 Melee 9 | . . . . . . . . . . . . . . . . . . . 3 . . . . . . 5 1 Projectile 298 | . . . . . . . . 8 2 9 12 1 12 5 17 . 18 60 29 . 9 19 5 37 38 3 14 AOE 255 | . . . . . . . . . . . . . . . . . . 43 142 . . 28 . . 42 . . Terrain Rammed . | . . . . . . . . . . . . . . . . . . . . . . . . . . . . Walls Destroyed . | . . . . . . . . . . . . . . . . . . . . . . . . . . . . Machines Disabled . | . . . . . . . . . . . . . . . . . . . . . . . . . . . . Actions | -11 -10 -9 -9 -9 -9 -6 -6 -6 -6 -6 -5 -5 -5 -5 -5 -5 -4 -4 -4 -4 -3 -3 -2 -2 -2 -1 -1 --------- Run | Yrd Mat Mat Sto Rec Scr Fac Ext Cet Arc Hub Fac Was Fac Upp Upp War Pro Fac Arm Lab Res Tes Res Qua Sec Acc Com Total 17103 | 79 878 610 1341 184 257 396 899 454 64 411 340 574 703 291 539 128 425 1289 1185 340 820 1390 296 646 1570 444 550 Wait 2527 | . 56 93 172 . 12 42 79 84 9 37 11 80 107 15 172 . 95 459 144 10 86 273 19 31 138 35 268 Move 12008 | 65 743 443 996 183 232 305 692 287 44 327 300 439 544 253 337 118 283 605 677 290 653 897 246 514 1057 335 143 Hop . | . . . . . . . . . . . . . . . . . . . . . . . . . . . . Pick Up 206 | 1 9 10 19 . . 9 7 7 2 5 4 8 6 2 1 . 2 21 33 3 11 18 1 3 18 1 5 Fast Attach 136 | 8 4 5 6 . . 3 . 2 . 1 1 3 3 . . 4 1 3 20 1 1 20 1 9 29 7 4 Attach 145 | . 1 1 4 . 1 8 . 1 . 5 3 1 . . 1 . 4 14 29 1 4 4 1 2 33 6 21 Detach 124 | 2 1 1 4 . 1 . . 1 . 3 2 2 1 . . . 2 7 18 1 3 10 2 5 36 8 14 Swap 462 | . 4 10 21 . 3 1 13 16 1 4 3 8 7 6 11 . 15 59 86 9 16 67 11 20 54 12 5 Drop 273 | 2 4 8 23 . . 9 9 15 3 6 2 11 8 2 1 6 1 23 30 4 13 42 4 7 29 4 7 Fire 1097 | 1 46 33 90 1 8 19 30 41 5 21 13 22 25 13 16 . 22 90 142 21 32 59 11 55 174 29 78 Melee 19 | . . . . . . . . . . . 1 . . . . . . . 6 . . . . . . 7 5 Ram . | . . . . . . . . . . . . . . . . . . . . . . . . . . . . Kick . | . . . . . . . . . . . . . . . . . . . . . . . . . . . . Crush 30 | . 10 6 6 . . . . . . 2 . . 1 . . . . 2 . . 1 . . . 2 . . Escape Stasis 14 | . . . . . . . 8 . . . . . . . . . . 6 . . . . . . . . . Rewire 62 | . . . . . . . 61 . . . . . 1 . . . . . . . . . . . . . . Trap . | . . . . . . . . . . . . . . . . . . . . . . . . . . . . Miscellaneous . | . . . . . . . . . . . . . . . . . . . . . . . . . . . . Route ------- -11/Scrapyard -10/Materials (discovered 5 exits: *Mat x3 / [*Min] / [*Sub]) -9/Materials (discovered 3 exits: [*Mat] / Min / *Sto) -9/Storage (discovered 2 exits: [*Mat] / *Rec) -9/Recycling (discovered 2 exits: [*Fac] / *Scr) -9/Scraptown (discovered 2 exits: *Fac x2) -6/Factory (discovered 2 exits: Fac / *Ext) -6/Extension (discovered 3 exits: *Fac x2 / *Cet) -6/Cetus (discovered 2 exits: *Fac / [*Arc]) -6/Archives -6/Hub_04(d) (discovered 2 exits: *Fac x2) -5/Factory -5/Waste -5/Factory (discovered 3 exits: *Fac x2 / *Upp) -5/Upper Caves -5/Upper Caves -5/Warlord -4/Proximity Caves -4/Factory -4/Armory -4/Lab -3/Research (discovered 3 exits: *Res x2 / *Tes) -3/Testing -2/Research (discovered 2 exits: *Qua x2) -2/Quarantine (discovered 3 exits: *Acc / *Sec / [*Frg]) -2/Section 7 -1/Access (discovered 2 exits: Sur / *Com) -1/Command History --------- Turn | Location | Event 24 | -11/Scrapyard | Discovered new exit (range 16) 110 | -11/Scrapyard | Entered Materials 201 | -10/Materials | Discovered new exit (range 16) 315 | -10/Materials | Build established: Mutant 384 | -10/Materials | Discovered new exit (range 5) 640 | -10/Materials | Discovered new exit (range 6) 714 | -10/Materials | Discovered new exit (range 9) 1150 | -10/Materials | Discovered new exit (range 16) 1374 | -10/Materials | Prayed at D.C.S.S. Altar Unit 1470 | -10/Materials | Ranged accuracy permanently improved by X0-1V1 (+5%; -50 max core) 1534 | -10/Materials | Entered another Materials area 1534 | -9/Materials | Evolved 2 slots: Utility x1, Weapon x1 1569 | -9/Materials | Identified exit to Mines 1569 | -9/Materials | Identified exit to Storage 1652 | -9/Materials | X0-1V1 released a cloud of subatomizers 1697 | -9/Materials | Central database locked down 1838 | -9/Materials | Build established: Gunner 1959 | -9/Materials | Destroyed 9 combat bots 2019 | -9/Materials | Repaired Lgt. Treads+ 2046 | -9/Materials | Repaired Lgt. Treads+ 2128 | -9/Materials | Energy generation permanently improved by X0-1V1 (+10; -100 max core) 2189 | -9/Materials | Discovered new exit (range 11) 2394 | -9/Materials | Sterilization system engaged 2394 | -9/Materials | Non-combat units ordered to evacuate 2470 | -9/Materials | Build established: Scavenger-Gunner 2490 | -9/Materials | Entered Storage 2508 | -9/Storage | X0-1V1 redirected Transport squads to designated parking area 2842 | -9/Storage | Used back door to open Recycling access 2842 | -9/Storage | Discovered new exit (range 5) 2848 | -9/Storage | Build established: Gunner 2951 | -9/Storage | Learned location of Armory (-4) 3119 | -9/Storage | Repaired Spread Laser 3147 | -9/Storage | Repaired Lgt. Treads+ 3229 | -9/Storage | X0-1V1 sent hostile S-10 Pest (x3) 3243 | -9/Storage | X0-1V1 activates XOMVISION 3384 | -9/Storage | X0-1V1 announced a LAN party 3748 | -9/Storage | Core integrity restored by X0-1V1 (+37) 3760 | -9/Storage | Met a pair of Derelict thieves 3799 | -9/Storage | Garrison activated, responded to threat 3896 | -9/Storage | Discovered new exit (range 15) 3932 | -9/Storage | X0-1V1 foreshadows a heat wave 4125 | -9/Storage | Ambient heat levels rising (+10) 4231 | -9/Storage | X0-1V1 activates XOMVISION 4291 | -9/Storage | Ambient heat levels rising (+10) 4484 | -9/Storage | Entered Recycling 4511 | -9/Recycling | Identified exit to Scraptown 4511 | -9/Recycling | X0-1V1 revealed exit location to -9/Scraptown 4546 | -9/Recycling | Core integrity permanently improved by X0-1V1 (+250) 4628 | -9/Recycling | Discovered new exit (range 16) 4677 | -9/Recycling | Scanned before Scraplab entrance 4695 | -9/Recycling | Entered Scraplab 4702 | -9/Recycling | X0-1V1 activates XOMVISION 4707 | -9/Recycling | Entered Scraptown 4752 | -9/Scraptown | X0-1V1 brought Wyrm Statue to life 4752 | -9/Scraptown | Attacked by Scraptown defenders 4963 | -9/Scraptown | Identified exit to Factory 4963 | -9/Scraptown | X0-1V1 revealed exit location to -6/Factory 5014 | -9/Scraptown | Discovered exit to Factory (range 3) 5029 | -9/Scraptown | Entered Factory 5029 | -6/Factory | Accompanied by 1 ally 5029 | -6/Factory | Evolved 6 slots: Propulsion x2, Utility x4 5056 | -6/Factory | Identified exit to Factory 5056 | -6/Factory | X0-1V1 revealed exit location to -5/Factory 5083 | -6/Factory | Build established: Tank 5166 | -6/Factory | Repaired Cooling System 5245 | -6/Factory | X0-1V1 redirected Transport squads to designated parking area 5291 | -6/Factory | Garrison activated, responded to threat 5316 | -6/Factory | X0-1V1 announced a LAN party 5378 | -6/Factory | Discovered new exit (range 10) 5549 | -6/Factory | Entered Extension 5549 | -6/Extension | Accompanied by 1 ally 5784 | -6/Extension | Spotted B-75 Beast 5795 | -6/Extension | Spotted B-75 Beast 5804 | -6/Extension | Allies destroyed B-75 Beast 5816 | -6/Extension | Allies destroyed B-75 Beast 5879 | -6/Extension | Rescued a captive Derelict 5879 | -6/Extension | Rescued a captive Derelict 6146 | -6/Extension | Build established: Scavenger-Tank 6252 | -6/Extension | X0-1V1 activates XOMVISION 6331 | -6/Extension | Discovered exit to Factory (range 10) 6333 | -6/Extension | Discovered new exit (range 6) 6346 | -6/Extension | X0-1V1 made a cryptic comment about sterilization and BL-4Z3 6478 | -6/Extension | Sterilization system engaged 6478 | -6/Extension | Non-combat units ordered to evacuate 6497 | -6/Extension | Rescued A7 6504 | -6/Extension | X0-1V1 put everyone to sleep 6520 | -6/Extension | Build established: Commander-Tank 6542 | -6/Extension | X0-1V1 announced a LAN party 6578 | -6/Extension | Combat units ordered to evacuate 6659 | -6/Extension | X0-1V1 revealed exit location to -5/Factory 6677 | -6/Extension | X0-1V1 vaporized surrounding terrain (radius 16) 6687 | -6/Extension | Entered Cetus 6687 | -6/Cetus | Accompanied by 10 allies (A7) 6692 | -6/Cetus | Acquired a Cetus Manufacturing Module code from A7 6706 | -6/Cetus | Spotted Cetus Guard 6707 | -6/Cetus | Spotted Cetus Guard 6710 | -6/Cetus | Spotted Cetus Guard 6713 | -6/Cetus | Allies destroyed Cetus Guard 6713 | -6/Cetus | Allies destroyed Cetus Guard 6713 | -6/Cetus | Spotted Cetus Guard 6725 | -6/Cetus | Destroyed Cetus Guard 6728 | -6/Cetus | Allies destroyed Cetus Guard 6787 | -6/Cetus | Started Cetus Manufacturing Module 6804 | -6/Cetus | Escorted A7 to Cetus Mainframe 6812 | -6/Cetus | Manufactured an Enhanced Grunt 6815 | -6/Cetus | Discovered new exit (range 18) 6837 | -6/Cetus | Manufactured an Enhanced Grunt 6862 | -6/Cetus | Manufactured an Enhanced Grunt 6887 | -6/Cetus | Manufactured an Enhanced Grunt 6912 | -6/Cetus | Manufactured an Enhanced Grunt 6989 | -6/Cetus | Spotted Cetus Guard 6990 | -6/Cetus | Spotted Cetus Guard 6993 | -6/Cetus | Destroyed Cetus Guard 6993 | -6/Cetus | Spotted Cetus Guard 7001 | -6/Cetus | Spotted Cetus Guard 7007 | -6/Cetus | Allies destroyed Cetus Guard 7011 | -6/Cetus | Discovered exit to Factory (range 15) 7014 | -6/Cetus | Allies destroyed Cetus Guard 7018 | -6/Cetus | Allies destroyed Cetus Guard 7027 | -6/Cetus | Met Revision 17 7276 | -6/Cetus | Murdered A7 7283 | -6/Cetus | Extracted ID and sensor layout for unrecognized location from A7's data core 7351 | -6/Cetus | Entered Archives 7351 | -6/Archives | Accompanied by 13 allies 7396 | -6/Archives | Discovered new exit (range 16) 7439 | -6/Archives | Entered Hub_04(d) 7439 | -6/Hub_04(d) | Accompanied by 13 allies 7505 | -6/Hub_04(d) | X0-1V1 rewrote LH-YJ6(g) IFF filter 7574 | -6/Hub_04(d) | Discovered exit to Factory (range 14) 7591 | -6/Hub_04(d) | Garrison activated, responded to threat 7698 | -6/Hub_04(d) | Lost 4 allies 7746 | -6/Hub_04(d) | Discovered exit to Factory (range 8) 7789 | -6/Hub_04(d) | First assault squad dispatched 7900 | -6/Hub_04(d) | Build established: Scavenger-Gunner 7982 | -6/Hub_04(d) | System corruption reached 10% 7984 | -6/Hub_04(d) | System corruption reached 30% 8072 | -6/Hub_04(d) | Entered Factory 8072 | -5/Factory | Accompanied by 5 allies 8072 | -5/Factory | Evolved 2 slots: Power x1, Weapon x1 8605 | -5/Factory | Manually triggered Chute Trap 8605 | -5/Factory | Sucked down chute 8605 | -5/Factory | Entered Waste 8640 | -5/Waste | 4 allies followed down the chute 8643 | -5/Waste | Spotted C-40 Crusher 8646 | -5/Waste | Allies destroyed C-40 Crusher 8649 | -5/Waste | Spotted C-40 Crusher 8660 | -5/Waste | Allies destroyed C-40 Crusher 8678 | -5/Waste | Destroyed C-40 Crusher 8682 | -5/Waste | Spotted C-40 Crusher 8690 | -5/Waste | Destroyed C-40 Crusher 8703 | -5/Waste | Lost 3 allies 8703 | -5/Waste | Destroyed C-40 Crusher 8713 | -5/Waste | Found Prototype Device 8713 | -5/Waste | Identified Exp. Thermal Shield 8812 | -5/Waste | Warlord forces began an assault 8890 | -5/Waste | X0-1V1 rewrote 7A-Q7V(g) IFF filter 9057 | -5/Waste | Spotted C-40 Crusher 9058 | -5/Waste | Allies destroyed C-40 Crusher 9234 | -5/Waste | Discovered new exit (range 16) 9485 | -5/Waste | Entered Factory 9485 | -5/Factory | Accompanied by 16 allies 9519 | -5/Factory | Identified exit to DSF 9612 | -5/Factory | X0-1V1 vaporized surrounding terrain (radius 22) 9617 | -5/Factory | Discovered new exit (range 15) 9621 | -5/Factory | Garrison activated, responded to threat 9662 | -5/Factory | Identified exit to Factory 9855 | -5/Factory | Build established: Scavenger-Tank 10017 | -5/Factory | Repaired Adv. KE Penetrator 10027 | -5/Factory | X0-1V1 sent you into danger 10028 | -5/Factory | X0-1V1 downgraded hostiles (x4) 10096 | -5/Factory | Discovered exit to Factory (range 15) 10171 | -5/Factory | Build established: Scavenger-Skirmisher 10273 | -5/Factory | X0-1V1 enhanced Transport squad support 10534 | -5/Factory | Discovered new exit (range 8) 10543 | -5/Factory | Identified exit to Upper Caves 10560 | -5/Factory | Entered Upper Caves 10560 | -5/Upper Caves | Accompanied by 5 allies 10596 | -5/Upper Caves | Attracted the attention of an 0b10 checkpoint 10616 | -5/Upper Caves | Spotted B-75 Beast 10628 | -5/Upper Caves | Allies destroyed B-75 Beast 10798 | -5/Upper Caves | X0-1V1 vaporized surrounding terrain (radius 20) 10853 | -5/Upper Caves | Discovered new exit (range 7) 10982 | -5/Upper Caves | Identified exit to Upper Caves 11028 | -5/Upper Caves | Entered another Upper Caves area 11028 | -5/Upper Caves | Accompanied by 3 allies 11245 | -5/Upper Caves | System corruption reached 10% 11372 | -5/Upper Caves | Sensors blinded by X0-1V1 11438 | -5/Upper Caves | X0-1V1 caused items to flee you 11537 | -5/Upper Caves | X0-1V1 sent hostile Fireman (x3) 11595 | -5/Upper Caves | X0-1V1 vaporized surrounding terrain (radius 20) 11688 | -5/Upper Caves | Build established: Scavenger-Tank 11711 | -5/Upper Caves | Items stopped fleeing you 11741 | -5/Upper Caves | Discovered new exit (range 14) 11765 | -5/Upper Caves | Identified exit to Warlord 11776 | -5/Upper Caves | Learned Factory emergency access door positions 11805 | -5/Upper Caves | Entered Warlord 11805 | -5/Warlord | Accompanied by 2 allies 11862 | -5/Warlord | System corruption cleaned by Quarantine Array 11921 | -5/Warlord | Attacked by Warlord forces 11988 | -5/Warlord | Discovered new exit (range 12) 12002 | -5/Warlord | Identified exit to Proximity Caves 12006 | -5/Warlord | Entered Proximity Caves 12006 | -4/Proximity Caves | Accompanied by 2 allies 12140 | -4/Proximity Caves | Learned location of Testing (-3) 12202 | -4/Proximity Caves | Spotted B-86 Titan 12246 | -4/Proximity Caves | X0-1V1 revealed exit location to -4/Factory 12444 | -4/Proximity Caves | X0-1V1 sent you into danger 12466 | -4/Proximity Caves | Destroyed B-86 Titan 12650 | -4/Proximity Caves | Entered Factory 12650 | -4/Factory | Accompanied by 2 allies 12650 | -4/Factory | Evolved 2 slots: Utility x2 12717 | -4/Factory | Build established: Scavenger-Gunner 12806 | -4/Factory | X0-1V1 announced a LAN party 13003 | -4/Factory | X0-1V1 caused items to flee you 13155 | -4/Factory | X0-1V1 tapped a No Entrance sign 13193 | -4/Factory | X0-1V1 vaporized surrounding terrain (radius 24) 13269 | -4/Factory | Build established: Gunner 13331 | -4/Factory | Items stopped fleeing you 14035 | -4/Factory | X0-1V1 downgraded hostiles (x3) 14075 | -4/Factory | Lost 3 parts (3u) 14103 | -4/Factory | Discovered new exit (range 9) 14150 | -4/Factory | First assault squad dispatched 14314 | -4/Factory | Identified exit to Armory 14315 | -4/Factory | Entered Armory 14461 | -4/Armory | X0-1V1 sent hostile H-66 Slayer (x2) 14531 | -4/Armory | Build established: Scavenger-Tank 14577 | -4/Armory | Destroyed 7 combat bots 14685 | -4/Armory | Found Fusion Bomb Launcher 14692 | -4/Armory | Lost 6 parts (1p2n2u1w) 14699 | -4/Armory | Identified exit to Lab 14699 | -4/Armory | X0-1V1 revealed exit location to -4/Lab 14705 | -4/Armory | X0-1V1 sent allied Lightning (x1) 14815 | -4/Armory | First assault squad dispatched 14928 | -4/Armory | System corruption reached 10% 14931 | -4/Armory | Lost 3 parts (1u2w) 14990 | -4/Armory | Destroyed 8 combat bots 15119 | -4/Armory | X0-1V1 destroyed Energy Cycler 15119 | -4/Armory | Energy Cycler disabled 15319 | -4/Armory | Lost 3 parts (1u2w) 15371 | -4/Armory | Destroyed 21 combat bots 15631 | -4/Armory | Lost 3 parts (2u1w) 16035 | -4/Armory | Entered Lab 16035 | -4/Lab | Discovered new exit (range 9) 16045 | -4/Lab | Identified exit to Research 16051 | -4/Lab | Hidden lab's door opened automatically 16051 | -4/Lab | Sensor layout match revealed 16052 | -4/Lab | Gained access to the hidden lab's interior 16121 | -4/Lab | Found Prototype Device 16121 | -4/Lab | Identified AEGIS Remote Shield 16129 | -4/Lab | Found Prototype Energy Gun 16129 | -4/Lab | Identified Tachyon Dispersion Ray 16142 | -4/Lab | Found Prototype Hackware 16170 | -4/Lab | Unable to decrypt terminal 16283 | -4/Lab | Found Alien Artifact 16283 | -4/Lab | Identified Integrated Mediator 16283 | -4/Lab | Installed Integrated Mediator, increased core attachment efficiency 16294 | -4/Lab | Found Alien Artifact 16304 | -4/Lab | Detected by scanners 16313 | -4/Lab | Confronted by A5 16381 | -4/Lab | Destroyed A5 16405 | -4/Lab | Unable to decrypt terminal 16407 | -4/Lab | Unable to decrypt terminal 16437 | -4/Lab | Unable to decrypt terminal 16503 | -4/Lab | Entered Research 16503 | -3/Research | Evolved 2 slots: Propulsion x2 16703 | -3/Research | Revision forces began assault on 0b10 16741 | -3/Research | Met up with Revision 17++ 16885 | -3/Research | X0-1V1 activates XOMVISION 16956 | -3/Research | Discovered new exit (range 11) 16973 | -3/Research | Identified exit to Research 17203 | -3/Research | Research terminal network offline 17347 | -3/Research | X0-1V1 added 0b10 threat records associated with you (major) 17363 | -3/Research | Discovered exit to Research (range 14) 17379 | -3/Research | X0-1V1 sent hostile B-74 Champion (x3) 17423 | -3/Research | Identified Core Regenerator 17423 | -3/Research | Identified Quantum Router 17459 | -3/Research | Build established: Tank 17465 | -3/Research | Found Prototype Processor 17482 | -3/Research | X0-1V1 vaporized surrounding terrain (radius 23) 17482 | -3/Research | Discovered new exit (range 10) 17485 | -3/Research | Identified Exp. Terrain Scan Processor 17547 | -3/Research | Identified exit to Testing 17607 | -3/Research | Intercept squad dispatched 17753 | -3/Research | Entered Testing 17824 | -3/Testing | Found Prototype Energy Cannon 17824 | -3/Testing | Identified Cld. Nova Cannon 17868 | -3/Testing | Found Prototype Hackware 17944 | -3/Testing | X0-1V1 activates XOMVISION 17975 | -3/Testing | Found Prototype Device 17975 | -3/Testing | Identified Exp. Shield Generator 17981 | -3/Testing | X0-1V1 sent you to a vault 18041 | -3/Testing | Found Prototype Device 18041 | -3/Testing | Identified Chronowheel 18041 | -3/Testing | Activated Chronowheel 18046 | -3/Testing | Found Prototype Device 18046 | -3/Testing | Identified Adv. Kinecellerator 18066 | -3/Testing | Found Prototype Device 18066 | -3/Testing | Identified Exp. Terrain Scanner 18157 | -3/Testing | X0-1V1 revealed exit location to -2/Research 18198 | -3/Testing | X0-1V1 put everyone to sleep 18302 | -3/Testing | Found Prototype Energy Cannon 18302 | -3/Testing | Identified Null Cannon 18437 | -3/Testing | Found Prototype Processor 18514 | -3/Testing | Identified Ghost Barrier 18526 | -3/Testing | Identified Exp. Signal Interpreter 18665 | -3/Testing | Found Prototype Ballistic Cannon 18665 | -3/Testing | Identified Perforator 18904 | -3/Testing | Found Prototype Protection 18921 | -3/Testing | Intercept squad dispatched 18923 | -3/Testing | Spotted Tracker 18929 | -3/Testing | Spotted Combat Programmer 18939 | -3/Testing | Destroyed Combat Programmer 18942 | -3/Testing | Destroyed Tracker 18953 | -3/Testing | X0-1V1 woke everyone up 18957 | -3/Testing | Found Prototype Processor 18957 | -3/Testing | Identified Exp. Targeting Computer 18984 | -3/Testing | Found Prototype Protection 18987 | -3/Testing | Found Prototype Protection 18988 | -3/Testing | Identified Med. Regenerative Plating 18991 | -3/Testing | Found Med. Regenerative Plating 19188 | -3/Testing | X0-1V1 activates XOMVISION 19354 | -3/Testing | Build established: Scavenger-Tank 19461 | -3/Testing | X0-1V1 caused items to flee you 19525 | -3/Testing | X0-1V1 activates XOMVISION 19698 | -3/Testing | Items stopped fleeing you 19735 | -3/Testing | Entered Research 19735 | -2/Research | Evolved 2 slots: Utility x2 19736 | -2/Research | Identified SHELL Armor 19838 | -2/Research | Identified exit to Quarantine 19838 | -2/Research | Watched by a mysterious "MATRIX" hacker 20030 | -2/Research | Spotted B-90 Cyclops 20099 | -2/Research | Destroyed B-90 Cyclops 20176 | -2/Research | Entered Quarantine 20288 | -2/Quarantine | Found Alien Slashing Weapon 20320 | -2/Quarantine | Build established: Tank 20655 | -2/Quarantine | Found Alien Artifact 20789 | -2/Quarantine | System corruption reached 10% 20816 | -2/Quarantine | Discovered new exit (range 10) 20890 | -2/Quarantine | Identified Phase Redirector 20921 | -2/Quarantine | Spotted Fortress 21029 | -2/Quarantine | Found Prototype Device 21029 | -2/Quarantine | Identified Exp. Force Field 21032 | -2/Quarantine | Found Prototype Device 21032 | -2/Quarantine | Identified Exp. EM Shield 21045 | -2/Quarantine | X0-1V1 activates XOMVISION 21099 | -2/Quarantine | Found Prototype Device 21099 | -2/Quarantine | Identified Thermal Barrier 21208 | -2/Quarantine | Discovered new exit (range 5) 21208 | -2/Quarantine | Discovered new exit (range 6) 21213 | -2/Quarantine | Identified exit to Section 7 21215 | -2/Quarantine | Entered Section 7 21252 | -2/Section 7 | Spotted S7 Guard 21296 | -2/Section 7 | Destroyed S7 Guard 21303 | -2/Section 7 | X0-1V1 vaporized surrounding terrain (radius 15) 21354 | -2/Section 7 | Found Alien Artifact 21512 | -2/Section 7 | Destroyed 9 combat bots 21629 | -2/Section 7 | Found Prototype Processor 21629 | -2/Section 7 | Identified Exp. Armor Integrity Analyzer 21641 | -2/Section 7 | Found Exp. Armor Integrity Analyzer 21777 | -2/Section 7 | X0-1V1 downgraded hostiles (x3) 21846 | -2/Section 7 | Found Alien Artifact 21853 | -2/Section 7 | Destroyed 9 combat bots 22107 | -2/Section 7 | Identified exit to Access 22107 | -2/Section 7 | X0-1V1 revealed exit location to -1/Access 22159 | -2/Section 7 | Scanned by Researcher 22294 | -2/Section 7 | Spotted Executioner 22305 | -2/Section 7 | Spotted Executioner 22322 | -2/Section 7 | Destroyed Executioner 22332 | -2/Section 7 | Destroyed Executioner 22365 | -2/Section 7 | Found Prototype Processor 22365 | -2/Section 7 | Identified Exp. Core Analyzer 22456 | -2/Section 7 | Found Alien Artifact 22501 | -2/Section 7 | X0-1V1 vaporized surrounding terrain (radius 17) 22618 | -2/Section 7 | Spotted Striker 22618 | -2/Section 7 | Spotted Striker 22634 | -2/Section 7 | Found Alien Energy Gun 22637 | -2/Section 7 | Found Alien Energy Gun 22637 | -2/Section 7 | Identified Sigix Sheargun (x2) 22686 | -2/Section 7 | Identified Transdimensional Reconstructor 22686 | -2/Section 7 | Warped through subspace 22686 | -2/Section 7 | Spotted Executioner 22686 | -2/Section 7 | Spotted Executioner 22693 | -2/Section 7 | Destroyed Executioner 22696 | -2/Section 7 | Destroyed Executioner 22716 | -2/Section 7 | X0-1V1 sent you to a vault 22745 | -2/Section 7 | Found Botcube 22749 | -2/Section 7 | Found Exp. Shield Generator 22807 | -2/Section 7 | Core integrity restored by X0-1V1 (+279) 22875 | -2/Section 7 | X0-1V1 whisked you away to safety 23005 | -2/Section 7 | X0-1V1 vaporized surrounding terrain (radius 23) 23022 | -2/Section 7 | X0-1V1 put everyone to sleep 23161 | -2/Section 7 | Found Alien Artifact 23175 | -2/Section 7 | Found Alien Artifact 23215 | -2/Section 7 | First assault squad dispatched 23260 | -2/Section 7 | Spotted B-99 Colossus 23315 | -2/Section 7 | Found Alien Artifact 23315 | -2/Section 7 | Identified Integrity Redistributor 23315 | -2/Section 7 | Used Integrity Redistributor, redistributed integrity from core (-325) 23377 | -2/Section 7 | Found Alien Artifact 23377 | -2/Section 7 | Identified LRC Matter Compressor 23377 | -2/Section 7 | Installed LRC Matter Compressor, increased matter storage capacity (+125) 23435 | -2/Section 7 | Found Alien Artifact 23435 | -2/Section 7 | Identified Core Reset Matrix 23435 | -2/Section 7 | Identified Terrabomb 23435 | -2/Section 7 | Identified Hpw. Transdimensional Reconstructor 23435 | -2/Section 7 | Identified Core Membrane 23435 | -2/Section 7 | Identified Spacefold Activator 23435 | -2/Section 7 | Identified Sigix Broadsword 23435 | -2/Section 7 | Used Core Reset Matrix 23439 | -2/Section 7 | Detected hypermatrix surge 23439 | -2/Section 7 | Sensed 12 artifacts in vicinity 23439 | -2/Section 7 | Installed Core Membrane, gained immunity to corruption 23458 | -2/Section 7 | Used Terrabomb 23493 | -2/Section 7 | Found Prototype Device 23493 | -2/Section 7 | Identified Exp. Thermal Shield 23618 | -2/Section 7 | X0-1V1 added 0b10 threat records associated with you (major) 23680 | -2/Section 7 | Discovered exit to Access (range 14) 23681 | -2/Section 7 | Destroyed 15 combat bots 23711 | -2/Section 7 | X0-1V1 redirected Transport squads to designated parking area 23729 | -2/Section 7 | Entered Access 23729 | -1/Access | Evolved 2 slots: Utility x2 23822 | -1/Access | Build established: Alien-Mutant 24237 | -1/Access | Build established: Alien-Assassin 24355 | -1/Access | Discovered new exit (range 14) 24390 | -1/Access | X0-1V1 opened Sealed Barrier 24418 | -1/Access | Identified exit to Surface 24418 | -1/Access | X0-1V1 revealed exit location to -0/Surface 24428 | -1/Access | Identified exit to Command 24429 | -1/Access | Entered Command 24583 | -1/Command | Found Unknown Protection 24583 | -1/Command | Identified Hvy. Reactive Plating 24611 | -1/Command | X0-1V1 caused items to flee you 24679 | -1/Command | First assault squad dispatched 24907 | -1/Command | Items stopped fleeing you 24953 | -1/Command | Spotted Combat Programmer 24962 | -1/Command | Build established: Alien-Mutant 25062 | -1/Command | Met MAIN.C 25075 | -1/Command | 0b10 Conduit disabled 25108 | -1/Command | X0-1V1 sent allied Lightning (x2) 25118 | -1/Command | Destroyed MAIN.C Shell 25121 | -1/Command | MAIN.C activated Command garrisons 25150 | -1/Command | Spotted Combat Programmer 25153 | -1/Command | Spotted M Guard 25156 | -1/Command | Spotted M Guard 25193 | -1/Command | Combat Programmer assimilated allied Lightning 25193 | -1/Command | Spotted Lightning 25198 | -1/Command | Self-destructed Last Messages --------------- 25181_ Exp. Armor Integrity Analyzer destroyed. 25181_ Sigix Broadsword destroyed. 25184_ Combat Programmer fails to hack Lightning. 25185_ Penetrated by EMDS Slug. 25185_ Core Membrane filtered system corruption (1). 25186_ Penetrated by EMDS Slug. 25186_ SHELL Armor destroyed. 25189_ Penetrated by EMDS Slug. 25189_ Core Membrane filtered system corruption (1). 25192_ Activated siege mode. 25193_ Combat Programmer hacks Lightning, assimilated. 25193_ X0-1V1 is highly amused! 25194_ Arm. Heavy Treads destroyed. 25194_ Coolant Network destroyed. 25194_ Penetrated by EMDS Slug. 25195_ Core Membrane filtered system corruption (1). 25197_ Lgt. Quantum Reactor destroyed. 25197_ Hds. Centrium Heavy Treads destroyed. 25198_ Lightning reactivates. 25198_ Penetrated by EMDS Slug. Map ----- +----------------------------------------------------+ | ?????????????????????????????????????????????????? | | ?????????????????????????????????????????????????? | | ?????????????????????????????????????????????????? | | ?????????????????????????????????????????????????? | | ?????????????????????????????????????????????????? | | ?????????????????????????????????????????????????? | | ?????????????????????????????????????????????????? | | ?????????????????????????????????????????????????? | | ?????????????????????????????????????????????????? | | ?????????????????????????????????????????????????? | | ?????????????????????????????????????????????????? | | ?????????????????????????????????????????????????? | | ????????????????????##################???????????? | | ???????????????????""" """ #???????????? | | ???????????????????? " #???????????? | | ????????????????????" ############# | | ????????????????""??"""""" =%!% | | ????????????????" " "" gY = | | ????????????????"" """""" h M gY | | ???????????????#"" """"" pp############# | | ???????????????# " "" % #???????????? | | ???????????????# " #???????????? | | ???????????????# " #???????????? | | ???????????????#"""" #???????????? | | ???????????????#"" % " "#???????????? | | ???????????????# @ """""#???????????? | | ???????????????# " #???????????? | | ???????????????# " #???????????? | | ???????????????" """ " #???????????? | | ???????????????" """" #???????????? | | ???????????????" " #???????????? | | ???????????????# " " " ?????????????? | | ???????????????# " " " " """""""?????????????? | | ???????????????# "" " " " ??????????????? | | ???????????????###################???????????????? | | ?????????????????????????????????????????????????? | | ?????????????????????????????????????????????????? | | ?????????????????????????????????????????????????? | | ?????????????????????????????????????????????????? | | ?????????????????????????????????????????????????? | | ?????????????????????????????????????????????????? | | ?????????????????????????????????????????????????? | | ?????????????????????????????????????????????????? | | ?????????????????????????????????????????????????? | | ?????????????????????????????????????????????????? | | ?????????????????????????????????????????????????? | | ?????????????????????????????????????????????????? | | ?????????????????????????????????????????????????? | | ?????????????????????????????????????????????????? | | ?????????????????????????????????????????????????? | +----------------------------------------------------+ Best States ------------- Heat Dissipation 168 Coolant Potential 100 Energy Generation 83 Energy Capacity 1700 Matter Stores 800 Matter Capacity 925 Sight Range 23 Robot Scan Range 16 Terrain Scan Range 14 Terrain Scan Density 1010 Jamming Range 16 Cloak Strength 4 Armor Coverage 3000 Resistance: KI 40 Resistance: TH 50 Resistance: EM 75 Propulsion Shielding 33 Weapon Cycling 20 Evasion (%) 40 Targeting Accuracy 12 Target Analysis 8 Core Analysis 8 Armor Integrity Analysis 50 Recoil Reduction 6 Energy Filtering 50 Particle Charging 25 Kinecelleration 50 Salvage Targeting 3 Item Schematics ----------------- None Robot Schematics ------------------ None Fabricated ------------ Nothing Repaired ---------- Lgt. Treads | 40% | -9/Materials Lgt. Treads | 70% | -9/Materials Spread Laser | 32% | -9/Storage Lgt. Treads | 60% | -9/Storage Cooling System | 20% | -6/Factory Adv. KE Penetrator | 50% | -5/Factory Studied --------- None Alien Tech Used ----------------- Integrated Mediator Phase Redirector Sigix Sheargun Transdimensional Reconstructor Integrity Redistributor LRC Matter Compressor Core Reset Matrix Core Membrane Spacefold Activator Terrabomb Sigix Broadsword Achievements -------------- Statue Heist Challenges ------------ None Game ------ Seed FactoryInsulatedShield Manual? 0 Play Time 05:51:07 Cumulative 592.1 hours Start 2026.08.20 @ 22:26:37 End 2026.08.21 @ 05:09:44 Sessions 5 Manual Loads 0 Difficulty Rogue Special Mode None Game No. 246 Rogue 246 Adventurer 0 Explorer 0 Win Type - Total 35 Types 16/4/4/2/1/2/2/2/1/1 Lore% 89 Gallery% 82 Achievement% 77 Wizard Run 0 Options --------- Layout 0 ASCII 0 Keyboard 1 Movement Arrows Keybinds 0 Fullscreen 2 Font 18/Terminus Map View 76x50 Zoom Use 0% Tactical HUD 1 Map Filters BRIGHTNESS(90)|SATURATION(90) Filters NONE Steam 1 RUN: 2ed49098-2076-4120-b62f-390469ec270d